Card Number,Card ID,Card Name,Card Type,Card User,Reference,Tran Type,Tran ID,Tran Date,Tran Year,Tran Period,Comm Date,Orig Comm Year,Orig Comm Period,Curr Comm Year,Curr Comm Period,Value,VAT Value,Nett Value,VAT Code,VAT Rate,VAT Year,VAT Period,VAT Inv,VAT Number,Supplier,Description,Purchase Type,Cost Centre,Account,Classification,Additional Ref,Department,Section,Compared,Compared Date,Compared By,Compared ID,Batch/Run Id,Disputed,Dispute Date,Dispute By,Dispute Reason,Authorised,Authorised Date,Authorised By,Jnl Date,Jnl Year,Jnl Period,Entered By,Entered Date,Year End Proc,Year End Ind
************5113,6,Mr Duncan J Byrne,U,Duncan Byrne,10652,C,10652,13/12/2023,2023,9,02/01/2024,2023,10,2023,10,35.96,5.99,29.97,B,20%,2023,10,Y,343475355,Morrisons Supermarket,8x zero Alchohol Mulled Wine - 16.00 4x Zero Alchohol Shiraz - 19.96 (Above for New Year Visit to Coast activity),Other,3131,46842,,,People and Places,People and Places,Y,02/01/2024 16:22,DBYRNE,7447,8195,N,,,,Y,08/01/2024 17:56,ABODEN,02/01/2024,2023,10,DBYRNE,02/01/2024 16:07,N,N
************5113,6,Mr Duncan J Byrne,U,Duncan Byrne,10653,C,10653,13/12/2023,2023,9,02/01/2024,2023,10,2023,10,65.00,10.83,54.17,B,20%,2023,10,Y,343475355,Morrisons Supermarket,10x packs of paper cups - 20.00 3x Plastic Storage Boxes - 45.00 (above for New Year Activity and WECP),Other,3131,42002,,,People and Places,People and Places,Y,02/01/2024 16:22,DBYRNE,7447,8195,N,,,,Y,08/01/2024 17:56,ABODEN,02/01/2024,2023,10,DBYRNE,02/01/2024 16:11,N,N
************5113,6,Mr Duncan J Byrne,U,Duncan Byrne,10651,C,10651,13/12/2023,2023,9,02/01/2024,2023,10,2023,10,78.36,0.00,78.36,C,0%,2023,10,,,Morrisons Supermarket,10x Box of Mince Pies - 18.50 1x net XL Oranges - 2.15 7x Coffee - 49.96 2x Hot Chocolate - 6.30 3x Milk = 1.45 (Above for (New Year Visit to Coast Vols),Other,3131,46842,,,People and Places,People and Places,Y,02/01/2024 16:22,DBYRNE,7447,8195,N,,,,Y,08/01/2024 17:56,ABODEN,02/01/2024,2023,10,DBYRNE,02/01/2024 15:58,N,N
************5113,6,Mr Duncan J Byrne,U,Duncan Byrne,14793,B,14793,13/12/2023,0,,01/01/1900,0,,0,,179.32,,,,,0,,,,WM MORRISONS STORE,,,,,,,,,Y,02/01/2024 16:22,DBYRNE,7447,289,N,,,,Y,08/01/2024 17:56,ABODEN,01/01/1900,0,,MBLACK,02/01/2024 12:57,,
************5113,6,Mr Duncan J Byrne,U,Duncan Byrne,10654,C,10654,01/12/2023,2023,9,02/01/2024,2023,10,2023,10,4.20,0.70,3.50,B,20%,2023,10,Y,390709185,Ticket Tailor,Fees for Ticket Tailor Booking System - 3.50,Other,3131,46104,,,People and Places,People and Places,Y,02/01/2024 16:21,DBYRNE,7446,8197,N,,,,Y,08/01/2024 17:56,ABODEN,02/01/2024,2023,10,DBYRNE,02/01/2024 16:20,N,N
************5113,6,Mr Duncan J Byrne,U,Duncan Byrne,14775,B,14775,01/12/2023,0,,01/01/1900,0,,0,,4.20,,,,,0,,,,TICKET TAILOR,,,,,,,,,Y,02/01/2024 16:21,DBYRNE,7446,289,N,,,,Y,08/01/2024 17:56,ABODEN,01/01/1900,0,,MBLACK,02/01/2024 12:57,,
************5113,6,Mr Duncan J Byrne,U,Duncan Byrne,10590,C,10590,01/11/2023,2023,8,06/12/2023,2023,9,2023,9,1.20,0.20,1.00,B,20%,2023,9,Y,390709185,Ticket Tailor,Ticket Fees - 1.00 (above for Wyre`s Great Outdoors Booking System),Other,3131,46104,,,People and Places,People and Places,Y,06/12/2023 10:43,DBYRNE,7403,8155,N,,,,Y,08/01/2024 17:56,ABODEN,06/12/2023,2023,9,DBYRNE,06/12/2023 10:42,N,N
************5113,6,Mr Duncan J Byrne,U,Duncan Byrne,14748,B,14748,01/11/2023,0,,01/01/1900,0,,0,,1.20,,,,,0,,,,TICKET TAILOR,,,,,,,,,Y,06/12/2023 10:43,DBYRNE,7403,288,N,,,,Y,08/01/2024 17:56,ABODEN,01/01/1900,0,,CCROOK,29/11/2023 12:33,,
************5113,6,Mr Duncan J Byrne,U,Duncan Byrne,10588,C,10588,27/10/2023,2023,7,06/12/2023,2023,9,2023,9,6.30,0.00,6.30,C,0%,2023,9,,,Morrisons Supermarket,2x Cadburys Hot Choc - 6.30 (above for Volunteers),Other,3131,46842,,,People and Places,People and Places,Y,06/12/2023 10:43,DBYRNE,7402,8154,N,,,,Y,08/01/2024 17:56,ABODEN,06/12/2023,2023,9,DBYRNE,06/12/2023 10:18,N,N
************5113,6,Mr Duncan J Byrne,U,Duncan Byrne,10589,C,10589,27/10/2023,2023,7,06/12/2023,2023,9,2023,9,13.00,2.17,10.83,B,20%,2023,9,Y,343475355,Morrisons Supermarket,8x Cards - 13.00 (above for Volunteers),Other,3131,42002,,,People and Places,People and Places,Y,06/12/2023 10:43,DBYRNE,7402,8154,N,,,,Y,08/01/2024 17:56,ABODEN,06/12/2023,2023,9,DBYRNE,06/12/2023 10:27,N,N
************5113,6,Mr Duncan J Byrne,U,Duncan Byrne,14743,B,14743,27/10/2023,0,,01/01/1900,0,,0,,19.30,,,,,0,,,,WM MORRISONS STORE,,,,,,,,,Y,06/12/2023 10:43,DBYRNE,7402,288,N,,,,Y,08/01/2024 17:56,ABODEN,01/01/1900,0,,CCROOK,29/11/2023 12:33,,
************5113,6,Mr Duncan J Byrne,U,Duncan Byrne,10533,C,10533,26/10/2023,2023,7,31/10/2023,2023,7,2023,7,275.26,45.88,229.38,B,20%,2023,7,Y,232555575,Screwfix,Heavy Duty Folding Trolley - 71.66 Handy Garden Trolley - 154.15 Box of Screws - 3.57 (above for Wyre Estuary Country Park),Other,3130,40100,,,People and Places,People and Places,Y,31/10/2023 12:38,DBYRNE,7361,8106,N,,,,Y,31/10/2023 18:12,ABODEN,31/10/2023,2023,7,DBYRNE,31/10/2023 12:38,N,N
************5113,6,Mr Duncan J Byrne,U,Duncan Byrne,14651,B,14651,26/10/2023,0,,01/01/1900,0,,0,,275.26,,,,,0,,,,WWW.SCREWFIX.COM,,,,,,,,,Y,31/10/2023 12:38,DBYRNE,7361,287,N,,,,Y,31/10/2023 18:12,ABODEN,01/01/1900,0,,CCROOK,31/10/2023 10:29,,
************5113,6,Mr Duncan J Byrne,U,Duncan Byrne,10532,C,10532,01/10/2023,2023,7,31/10/2023,2023,7,2023,7,3.60,0.60,3.00,B,20%,2023,7,Y,390709185,Ticket Tailor,Fees for Ticket Booking Service - 3.00 Above for Wyre`s Great Outdoors Activity Programme - Oct),Other,3131,46700,,,People and Places,People and Places,Y,31/10/2023 12:38,DBYRNE,7360,8105,N,,,,Y,31/10/2023 18:12,ABODEN,31/10/2023,2023,7,DBYRNE,31/10/2023 12:30,N,N
************5113,6,Mr Duncan J Byrne,U,Duncan Byrne,14656,B,14656,01/10/2023,0,,01/01/1900,0,,0,,3.60,,,,,0,,,,TICKET TAILOR,,,,,,,,,Y,31/10/2023 12:38,DBYRNE,7360,287,N,,,,Y,31/10/2023 18:12,ABODEN,01/01/1900,0,,CCROOK,31/10/2023 10:29,,
************5139,8,Shelley Birch,U,Shelley Birch,14805,B,14805,19/12/2023,0,,01/01/1900,0,,0,,150.00,,,,,0,,,,POULTON SWIMMING CTRE,,,,,,,,,N,,,0,289,N,,,,N,,,01/01/1900,0,,MBLACK,02/01/2024 12:57,,
************8487,12,Miss C Greener,U,Catherine Greener,14718,B,14718,21/11/2023,0,,01/01/1900,0,,0,,337.00,,,,,0,,,,SRA,,,,,,,,,N,,,0,288,N,,,,N,,,01/01/1900,0,,CCROOK,29/11/2023 12:33,,
************8487,12,Miss C Greener,U,Catherine Greener,14686,B,14686,30/10/2023,0,,01/01/1900,0,,0,,337.00,,,,,0,,,,SRA,,,,,,,,,N,,,0,288,N,,,,N,,,01/01/1900,0,,CCROOK,29/11/2023 12:33,,
************4775,16,Gary Scott,S,Tracey Waistle,14815,B,14815,27/12/2023,0,,01/01/1900,0,,0,,262.80,,,,,0,,,,AUTOTRONICS,,,,,,,,,N,,,0,289,N,,,,N,,,01/01/1900,0,,MBLACK,02/01/2024 12:57,,
************4775,16,Gary Scott,S,Tracey Waistle,14816,B,14816,27/12/2023,0,,01/01/1900,0,,0,,322.50,,,,,0,,,,DVLA VEHICLE TAX,,,,,,,,,N,,,0,289,N,,,,N,,,01/01/1900,0,,MBLACK,02/01/2024 12:57,,
************4775,16,Gary Scott,S,Tracey Waistle,14817,B,14817,27/12/2023,0,,01/01/1900,0,,0,,322.50,,,,,0,,,,DVLA VEHICLE TAX,,,,,,,,,N,,,0,289,N,,,,N,,,01/01/1900,0,,MBLACK,02/01/2024 12:57,,
************4775,16,Gary Scott,S,Tracey Waistle,14809,B,14809,21/12/2023,0,,01/01/1900,0,,0,,35.00,,,,,0,,,,SKILLS AND EDUCATION G,,,,,,,,,N,,,0,289,N,,,,N,,,01/01/1900,0,,MBLACK,02/01/2024 12:57,,
************4775,16,Gary Scott,S,Tracey Waistle,14810,B,14810,21/12/2023,0,,01/01/1900,0,,0,,35.00,,,,,0,,,,SKILLS AND EDUCATION G,,,,,,,,,N,,,0,289,N,,,,N,,,01/01/1900,0,,MBLACK,02/01/2024 12:57,,
************4775,16,Gary Scott,S,Tracey Waistle,14811,B,14811,21/12/2023,0,,01/01/1900,0,,0,,35.00,,,,,0,,,,SKILLS AND EDUCATION G,,,,,,,,,N,,,0,289,N,,,,N,,,01/01/1900,0,,MBLACK,02/01/2024 12:57,,
************4775,16,Gary Scott,S,Tracey Waistle,10645,C,10645,20/12/2023,2023,9,02/01/2024,2023,10,2023,10,422.80,70.47,352.33,B,20%,2023,10,,,Camskill Tyres,4 225/70 R15 C 112/110S TL Tyres,Other,6955,30503,,,People and Places,People and Places,Y,02/01/2024 15:33,JCARTRIDGE,7445,8190,N,,,,Y,02/01/2024 16:31,CGREEN,02/01/2024,2023,10,CCLOHERTYJONES,02/01/2024 14:35,N,N
************4775,16,Gary Scott,S,Tracey Waistle,14806,B,14806,20/12/2023,0,,01/01/1900,0,,0,,422.80,,,,,0,,,,WWW.CAMSKILL.CO.UK,,,,,,,,,Y,02/01/2024 15:33,JCARTRIDGE,7445,289,N,,,,Y,02/01/2024 16:31,CGREEN,01/01/1900,0,,MBLACK,02/01/2024 12:57,,
************4775,16,Gary Scott,S,Tracey Waistle,10646,C,10646,18/12/2023,2023,9,02/01/2024,2023,10,2023,10,7.49,0.00,7.49,E,0%,2023,10,,,Post Office,Post -ABS pump V94,Other,5221,30507,V94,,People and Places,People and Places,Y,02/01/2024 15:33,JCARTRIDGE,7445,8190,N,,,,Y,02/01/2024 16:31,CGREEN,02/01/2024,2023,10,CCLOHERTYJONES,02/01/2024 14:37,N,N
************4775,16,Gary Scott,S,Tracey Waistle,14804,B,14804,18/12/2023,0,,01/01/1900,0,,0,,7.49,,,,,0,,,,POST OFFICE COUNTER,,,,,,,,,Y,02/01/2024 15:33,JCARTRIDGE,7445,289,N,,,,Y,02/01/2024 16:31,CGREEN,01/01/1900,0,,MBLACK,02/01/2024 12:57,,
************4775,16,Gary Scott,S,Tracey Waistle,14797,B,14797,15/12/2023,0,,01/01/1900,0,,0,,316.20,,,,,0,,,,SMARTXPRESS PAINT AND,,,,,,,,,N,,,0,289,N,,,,N,,,01/01/1900,0,,MBLACK,02/01/2024 12:57,,
************4775,16,Gary Scott,S,Tracey Waistle,10628,C,10628,27/11/2023,2023,8,19/12/2023,2023,9,2023,9,327.37,54.56,272.81,B,20%,2023,9,Y,598219687,Ciceley Commercials ltd,various items for KS21 FFV,Other,6955,42002,REGHA,,People and Places,People and Places,Y,20/12/2023 09:47,HGRUNDY,7412,8174,N,,,,Y,20/12/2023 09:53,CGREEN,19/12/2023,2023,9,CCLOHERTYJONES,19/12/2023 16:50,N,N
************4775,16,Gary Scott,S,Tracey Waistle,14741,B,14741,27/11/2023,0,,01/01/1900,0,,0,,327.37,,,,,0,,,,CICELEY COMMERCIALS,,,,,,,,,Y,20/12/2023 09:47,HGRUNDY,7412,288,N,,,,Y,20/12/2023 09:53,CGREEN,01/01/1900,0,,CCROOK,29/11/2023 12:33,,
************4775,16,Gary Scott,S,Tracey Waistle,10627,C,10627,23/11/2023,2023,8,19/12/2023,2023,9,2023,9,126.00,21.00,105.00,B,20%,2023,9,Y,696308987,business Gift UK.com,key loop for HAVs,Other,6955,42002,,,People and Places,People and Places,Y,20/12/2023 09:47,HGRUNDY,7412,8174,N,,,,Y,20/12/2023 09:53,CGREEN,19/12/2023,2023,9,CCLOHERTYJONES,19/12/2023 16:48,N,N
************4775,16,Gary Scott,S,Tracey Waistle,14728,B,14728,23/11/2023,0,,01/01/1900,0,,0,,126.00,,,,,0,,,,AD OPTIONS LIMITED,,,,,,,,,Y,20/12/2023 09:47,HGRUNDY,7412,288,N,,,,Y,20/12/2023 09:53,CGREEN,01/01/1900,0,,CCROOK,29/11/2023 12:33,,
************4775,16,Gary Scott,S,Tracey Waistle,10626,C,10626,23/11/2023,2023,8,19/12/2023,2023,9,2023,9,167.50,0.00,167.50,D,0%,2023,9,,,DVLA,road tax v90,Other,6902,30502,v113,,People and Places,People and Places,Y,20/12/2023 09:47,HGRUNDY,7412,8174,N,,,,Y,20/12/2023 09:53,CGREEN,19/12/2023,2023,9,CCLOHERTYJONES,19/12/2023 16:45,N,N
************4775,16,Gary Scott,S,Tracey Waistle,14729,B,14729,23/11/2023,0,,01/01/1900,0,,0,,167.50,,,,,0,,,,DVLA VEHICLE TAX,,,,,,,,,Y,20/12/2023 09:47,HGRUNDY,7412,288,N,,,,Y,20/12/2023 09:53,CGREEN,01/01/1900,0,,CCROOK,29/11/2023 12:33,,
************4775,16,Gary Scott,S,Tracey Waistle,10624,C,10624,23/11/2023,2023,8,19/12/2023,2023,9,2023,9,322.50,0.00,322.50,D,0%,2023,9,,,DVLA,road tax V104,Other,6953,30502,V104,,People and Places,People and Places,Y,20/12/2023 09:47,HGRUNDY,7412,8174,N,,,,Y,20/12/2023 09:53,CGREEN,19/12/2023,2023,9,CCLOHERTYJONES,19/12/2023 16:41,N,N
************4775,16,Gary Scott,S,Tracey Waistle,10625,C,10625,23/11/2023,2023,8,19/12/2023,2023,9,2023,9,322.50,0.00,322.50,D,0%,2023,9,,,DVLA,Road tax v90,Other,6902,30502,v90,,People and Places,People and Places,Y,20/12/2023 09:47,HGRUNDY,7412,8174,N,,,,Y,20/12/2023 09:53,CGREEN,19/12/2023,2023,9,CCLOHERTYJONES,19/12/2023 16:43,N,N
************4775,16,Gary Scott,S,Tracey Waistle,14730,B,14730,23/11/2023,0,,01/01/1900,0,,0,,322.50,,,,,0,,,,DVLA VEHICLE TAX,,,,,,,,,Y,20/12/2023 09:47,HGRUNDY,7412,288,N,,,,Y,20/12/2023 09:53,CGREEN,01/01/1900,0,,CCROOK,29/11/2023 12:33,,
************4775,16,Gary Scott,S,Tracey Waistle,14731,B,14731,23/11/2023,0,,01/01/1900,0,,0,,322.50,,,,,0,,,,DVLA VEHICLE TAX,,,,,,,,,Y,20/12/2023 09:47,HGRUNDY,7412,288,N,,,,Y,20/12/2023 09:53,CGREEN,01/01/1900,0,,CCROOK,29/11/2023 12:33,,
************4775,16,Gary Scott,S,Tracey Waistle,10622,C,10622,21/11/2023,2023,8,19/12/2023,2023,9,2023,9,322.50,0.00,322.50,D,0%,2023,9,,,DVLA,road tax v120,Other,3420,30502,v120,,People and Places,People and Places,Y,20/12/2023 09:47,HGRUNDY,7412,8174,N,,,,Y,20/12/2023 09:53,CGREEN,19/12/2023,2023,9,CCLOHERTYJONES,19/12/2023 16:39,N,N
************4775,16,Gary Scott,S,Tracey Waistle,10623,C,10623,21/11/2023,2023,8,19/12/2023,2023,9,2023,9,322.50,0.00,322.50,D,0%,2023,9,,,DVLA,road tax v105,Other,6953,30502,v105,,People and Places,People and Places,Y,20/12/2023 09:47,HGRUNDY,7412,8174,N,,,,Y,20/12/2023 09:53,CGREEN,19/12/2023,2023,9,CCLOHERTYJONES,19/12/2023 16:40,N,N
************4775,16,Gary Scott,S,Tracey Waistle,14716,B,14716,21/11/2023,0,,01/01/1900,0,,0,,322.50,,,,,0,,,,DVLA VEHICLE TAX,,,,,,,,,Y,20/12/2023 09:47,HGRUNDY,7412,288,N,,,,Y,20/12/2023 09:53,CGREEN,01/01/1900,0,,CCROOK,29/11/2023 12:33,,
************4775,16,Gary Scott,S,Tracey Waistle,14717,B,14717,21/11/2023,0,,01/01/1900,0,,0,,322.50,,,,,0,,,,DVLA VEHICLE TAX,,,,,,,,,Y,20/12/2023 09:47,HGRUNDY,7412,288,N,,,,Y,20/12/2023 09:53,CGREEN,01/01/1900,0,,CCROOK,29/11/2023 12:33,,
************4775,16,Gary Scott,S,Tracey Waistle,14714,B,14714,20/11/2023,0,,01/01/1900,0,,0,,9.00,,,,,0,,,,AUTOBITZ MOTOR FACTORS,,,,,,,,,Y,20/12/2023 09:47,HGRUNDY,7412,288,N,,,,Y,20/12/2023 09:53,CGREEN,01/01/1900,0,,CCROOK,29/11/2023 12:33,,
************4775,16,Gary Scott,S,Tracey Waistle,10621,C,10621,17/11/2023,2023,8,19/12/2023,2023,9,2023,9,9.00,1.50,7.50,B,20%,2023,9,,992488166,autobitz,1 rear number plate V78,Other,6953,30507,v78,,People and Places,People and Places,Y,20/12/2023 09:47,HGRUNDY,7412,8174,N,,,,Y,20/12/2023 09:53,CGREEN,19/12/2023,2023,9,CCLOHERTYJONES,19/12/2023 16:37,N,N
************4775,16,Gary Scott,S,Tracey Waistle,14705,B,14705,16/11/2023,0,,01/01/1900,0,,0,,489.24,,,,,0,,,,J W PLANT & CO LIMITED,,,,,,,,,Y,04/12/2023 10:08,JCARTRIDGE,7397,288,N,,,,Y,04/12/2023 15:04,CGREEN,01/01/1900,0,,CCROOK,29/11/2023 12:33,,
************4775,16,Gary Scott,S,Tracey Waistle,10562,C,10562,15/11/2023,2023,8,16/11/2023,2023,8,2023,8,489.24,81.54,407.70,B,20%,2023,8,Y,169154837,JW Plant,Union Jack Flags Job number: N1123-1450,Other,6955,,,,People and Places,People and Places,Y,04/12/2023 10:08,JCARTRIDGE,7397,8133,N,,,,Y,04/12/2023 15:04,CGREEN,16/11/2023,2023,8,TWAISTLE,16/11/2023 13:13,N,N
************4775,16,Gary Scott,S,Tracey Waistle,10561,C,10561,15/11/2023,2023,8,16/11/2023,2023,8,2023,8,668.64,111.44,557.20,B,20%,2023,8,Y,GB568629292,Plastic Pallets UK,Plastic Pallets Invoice no: 478,Other,3260,42002,,,People and Places,People and Places,Y,29/11/2023 12:34,JCARTRIDGE,7383,8132,N,,,,Y,04/12/2023 15:04,CGREEN,16/11/2023,2023,8,TWAISTLE,16/11/2023 13:08,N,N
************4775,16,Gary Scott,S,Tracey Waistle,14704,B,14704,15/11/2023,0,,01/01/1900,0,,0,,668.64,,,,,0,,,,ASSOCIATED PALLETS LTD,,,,,,,,,Y,29/11/2023 12:34,JCARTRIDGE,7383,288,N,,,,Y,04/12/2023 15:04,CGREEN,01/01/1900,0,,CCROOK,29/11/2023 12:33,,
************4775,16,Gary Scott,S,Tracey Waistle,10554,C,10554,01/11/2023,2023,8,09/11/2023,2023,8,2023,8,322.50,0.00,322.50,D,0%,2023,8,,,DVLA,tax v07,Other,6902,30502,v07,,People and Places,People and Places,Y,04/12/2023 10:08,JCARTRIDGE,7397,8124,N,,,,Y,04/12/2023 15:04,CGREEN,09/11/2023,2023,8,CCLOHERTYJONES,09/11/2023 17:29,N,N
************4775,16,Gary Scott,S,Tracey Waistle,14685,B,14685,30/10/2023,0,,01/01/1900,0,,0,,322.50,,,,,0,,,,DVLA VEHICLE TAX,,,,,,,,,Y,04/12/2023 10:08,JCARTRIDGE,7397,288,N,,,,Y,04/12/2023 15:04,CGREEN,01/01/1900,0,,CCROOK,29/11/2023 12:33,,
************4775,16,Gary Scott,S,Tracey Waistle,10529,C,10529,26/10/2023,2023,7,27/10/2023,2023,7,2023,7,43.63,7.27,36.36,B,20%,2023,7,,,Lifting Gear Direct,Green pin bow shackle Order no: 3234,Other,6902,40100,,,People and Places,People and Places,Y,31/10/2023 10:31,CCROOK,7335,8102,N,,,,Y,04/12/2023 15:04,CGREEN,27/10/2023,2023,7,TWAISTLE,27/10/2023 15:14,N,N
************4775,16,Gary Scott,S,Tracey Waistle,14652,B,14652,26/10/2023,0,,01/01/1900,0,,0,,43.63,,,,,0,,,,LIFTING GEAR DIRECT,,,,,,,,,Y,31/10/2023 10:31,CCROOK,7335,287,N,,,,Y,04/12/2023 15:04,CGREEN,01/01/1900,0,,CCROOK,31/10/2023 10:29,,
************4775,16,Gary Scott,S,Tracey Waistle,10512,C,10512,23/10/2023,2023,7,23/10/2023,2023,7,2023,7,75.48,12.58,62.90,B,20%,2023,7,Y,322861077,WALTON SUMMIT,55k03a lock,Other,6902,30507,v90,,People and Places,People and Places,Y,31/10/2023 14:38,CCROOK,7362,8084,N,,,,Y,04/12/2023 15:04,CGREEN,23/10/2023,2023,7,CCLOHERTYJONES,23/10/2023 15:27,N,N
************4775,16,Gary Scott,S,Tracey Waistle,14630,B,14630,18/10/2023,0,,01/01/1900,0,,0,,75.48,,,,,0,,,,WALTON SUMMIT TRUCK CE,,,,,,,,,Y,31/10/2023 14:38,CCROOK,7362,287,N,,,,Y,04/12/2023 15:04,CGREEN,01/01/1900,0,,CCROOK,31/10/2023 10:29,,
************4775,16,Gary Scott,S,Tracey Waistle,10511,C,10511,17/10/2023,2023,7,23/10/2023,2023,7,2023,7,234.64,39.11,195.53,B,20%,2023,7,Y,726910921,chorley group,"regulator and cap disc wheel , as per doc 73019594",Other,4190,30507,v102,,People and Places,People and Places,Y,31/10/2023 14:38,CCROOK,7362,8083,N,,,,Y,04/12/2023 15:04,CGREEN,23/10/2023,2023,7,CCLOHERTYJONES,23/10/2023 15:20,N,N
************4775,16,Gary Scott,S,Tracey Waistle,14625,B,14625,16/10/2023,0,,01/01/1900,0,,0,,234.64,,,,,0,,,,CHORLEY GROUP NISSAN B,,,,,,,,,Y,31/10/2023 14:38,CCROOK,7362,287,N,,,,Y,04/12/2023 15:04,CGREEN,01/01/1900,0,,CCROOK,31/10/2023 10:29,,
************4775,16,Gary Scott,S,Tracey Waistle,10486,C,10486,13/10/2023,2023,7,16/10/2023,2023,7,2023,7,210.00,0.00,210.00,D,0%,2023,7,,,mr chips,Fix passenger door nissan leaf following break in,Other,4190,30507,v102,,People and Places,People and Places,Y,31/10/2023 10:31,CCROOK,7336,8069,N,,,,Y,04/12/2023 15:04,CGREEN,16/10/2023,2023,7,CCLOHERTYJONES,16/10/2023 16:44,N,N
************4775,16,Gary Scott,S,Tracey Waistle,14623,B,14623,13/10/2023,0,,01/01/1900,0,,0,,210.00,,,,,0,,,,PAYPAL MRCHIPLIMIT,,,,,,,,,Y,31/10/2023 10:31,CCROOK,7336,287,N,,,,Y,04/12/2023 15:04,CGREEN,01/01/1900,0,,CCROOK,31/10/2023 10:29,,
************4775,16,Gary Scott,S,Tracey Waistle,10485,C,10485,10/10/2023,2023,7,16/10/2023,2023,7,2023,7,410.00,0.00,410.00,D,0%,2023,7,,,dvsa,200 MOT spots,Other,3712,30502,,,People and Places,People and Places,Y,31/10/2023 10:31,CCROOK,7337,8069,N,,,,Y,04/12/2023 15:04,CGREEN,16/10/2023,2023,7,CCLOHERTYJONES,16/10/2023 16:38,N,N
************4775,16,Gary Scott,S,Tracey Waistle,14675,B,14675,10/10/2023,0,,01/01/1900,0,,0,,410.00,,,,,0,,,,DVSA,,,,,,,,,Y,31/10/2023 10:31,CCROOK,7337,287,N,,,,Y,04/12/2023 15:04,CGREEN,01/01/1900,0,,CCROOK,31/10/2023 10:29,,
************0987,21,Mr David Twiss,S,Tracey Waistle,10620,C,10620,21/11/2023,2023,8,19/12/2023,2023,9,2023,9,60.84,10.14,50.70,B,20%,2023,9,,,euro garages -,fuel for vehicle T991,Other,6902,30511,t991,,People and Places,People and Places,Y,19/12/2023 16:33,JCARTRIDGE,7409,8173,N,,,,P,19/12/2023 16:33,GSCOTT,,0,0,CCLOHERTYJONES,19/12/2023 16:28,N,N
************0987,21,Mr David Twiss,S,Tracey Waistle,14719,B,14719,21/11/2023,0,,01/01/1900,0,,0,,60.84,,,,,0,,,,ESSO ANCHORSHOLME SSTN,,,,,,,,,Y,19/12/2023 16:33,JCARTRIDGE,7409,288,N,,,,P,19/12/2023 16:33,GSCOTT,01/01/1900,0,,CCROOK,29/11/2023 12:33,,
************6873,26,Miss Susan J Houton,U,Susan Houton,10568,C,10568,22/11/2023,2023,8,22/11/2023,2023,8,2023,8,6.80,1.13,5.67,B,20%,2023,8,Y,,ASDA STORES LTD,Biscuit Shop for CCTV Volunteers,Other,3361,14010,,,People and Places,People and Places,Y,04/12/2023 10:09,JCARTRIDGE,7398,8139,N,,,,P,04/12/2023 10:09,NGREENWOOD,,0,0,SHOUTON,22/11/2023 11:29,N,N
************6873,26,Miss Susan J Houton,U,Susan Houton,10569,C,10569,22/11/2023,2023,8,22/11/2023,2023,8,2023,8,18.80,0.00,18.80,D,0%,2023,8,Y,,ASDA STORES LTD,Biscuit Shop CCTV Volunterrs,Other,3361,14010,,,People and Places,People and Places,Y,04/12/2023 10:09,JCARTRIDGE,7398,8139,N,,,,P,04/12/2023 10:09,NGREENWOOD,,0,0,SHOUTON,22/11/2023 11:30,N,N
************6873,26,Miss Susan J Houton,U,Susan Houton,14725,B,14725,22/11/2023,0,,01/01/1900,0,,0,,25.60,,,,,0,,,,ASDA STOES LTD 5759,,,,,,,,,Y,04/12/2023 10:09,JCARTRIDGE,7398,288,N,,,,P,04/12/2023 10:09,NGREENWOOD,01/01/1900,0,,CCROOK,29/11/2023 12:33,,
************1859,31,Mr J Pearson,U,Jonny Pearson,14770,B,14770,30/11/2023,0,,01/01/1900,0,,0,,71.23,,,,,0,,,,UPS LTD,,,,,,,,,N,,,0,289,N,,,,N,,,01/01/1900,0,,MBLACK,02/01/2024 12:57,,
************1859,31,Mr J Pearson,U,Jonny Pearson,10597,C,10597,23/11/2023,2023,8,06/12/2023,2023,9,2023,9,60.70,10.12,50.58,B,20%,2023,9,,,WWW.BROADBANDBUYER.CO.,x6 EssCable LC - LC 10m Erika Violet Multimode Duplex LSZH Fibre Patch Lead (OM4),Other,6404,43500,HW007,,Resources,Resources,Y,06/12/2023 11:30,JPEARSON,7404,8157,N,,,,Y,07/12/2023 13:00,LBROPHY,06/12/2023,2023,9,JPEARSON,06/12/2023 11:30,N,N
************1859,31,Mr J Pearson,U,Jonny Pearson,14732,B,14732,23/11/2023,0,,01/01/1900,0,,0,,60.70,,,,,0,,,,WWW.BROADBANDBUYER.CO.,,,,,,,,,Y,06/12/2023 11:30,JPEARSON,7404,288,N,,,,Y,07/12/2023 13:00,LBROPHY,01/01/1900,0,,CCROOK,29/11/2023 12:33,,
************1859,31,Mr J Pearson,U,Jonny Pearson,10596,C,10596,21/11/2023,2023,8,06/12/2023,2023,9,2023,9,43.25,7.21,36.04,B,20%,2023,9,,,WWW.BROADBANDBUYER.CO.,EssCable LC - LC 10m Erika Violet Multimode Duplex LSZH Fibre Patch Lead (OM4),Other,6404,43500,HW007,,Resources,Resources,Y,06/12/2023 11:30,JPEARSON,7404,8157,N,,,,Y,07/12/2023 13:00,LBROPHY,06/12/2023,2023,9,JPEARSON,06/12/2023 11:27,N,N
************1859,31,Mr J Pearson,U,Jonny Pearson,14720,B,14720,21/11/2023,0,,01/01/1900,0,,0,,43.25,,,,,0,,,,WWW.BROADBANDBUYER.CO.,,,,,,,,,Y,06/12/2023 11:30,JPEARSON,7404,288,N,,,,Y,07/12/2023 13:00,LBROPHY,01/01/1900,0,,CCROOK,29/11/2023 12:33,,
************1859,31,Mr J Pearson,U,Jonny Pearson,10595,C,10595,01/11/2023,2023,8,06/12/2023,2023,9,2023,9,13.20,2.20,11.00,B,20%,2023,9,,,WWW.BROADBANDBUYER.CO.,Teltonika PR3PUUK3 9W UK Power Supply for RUT240/RUT241/RUT850/RUT950/RUT951/RUT955/RUT956 Routers,Other,6404,43500,HW014,,Resources,Resources,Y,06/12/2023 11:30,JPEARSON,7404,8157,N,,,,Y,07/12/2023 13:00,LBROPHY,06/12/2023,2023,9,JPEARSON,06/12/2023 11:22,N,N
************1859,31,Mr J Pearson,U,Jonny Pearson,14749,B,14749,01/11/2023,0,,01/01/1900,0,,0,,13.20,,,,,0,,,,WWW.BROADBANDBUYER.CO.,,,,,,,,,Y,06/12/2023 11:30,JPEARSON,7404,288,N,,,,Y,07/12/2023 13:00,LBROPHY,01/01/1900,0,,CCROOK,29/11/2023 12:33,,
************1859,31,Mr J Pearson,U,Jonny Pearson,10592,C,10592,30/10/2023,2023,7,06/12/2023,2023,9,2023,9,358.17,0.00,358.17,I,0%,2023,9,,,UPS Ltd,UPS Import Charges for Flexoptix order,Other,6404,43500,HW016,,Resources,Resources,Y,06/12/2023 11:30,JPEARSON,7404,8156,N,,,,Y,07/12/2023 13:00,LBROPHY,06/12/2023,2023,9,JPEARSON,06/12/2023 11:14,N,N
************1859,31,Mr J Pearson,U,Jonny Pearson,14687,B,14687,30/10/2023,0,,01/01/1900,0,,0,,358.17,,,,,0,,,,UPS LTD,,,,,,,,,Y,06/12/2023 11:30,JPEARSON,7404,288,N,,,,Y,07/12/2023 13:00,LBROPHY,01/01/1900,0,,CCROOK,29/11/2023 12:33,,
************1859,31,Mr J Pearson,U,Jonny Pearson,10591,C,10591,25/10/2023,2023,7,06/12/2023,2023,9,2023,9,76.51,12.75,63.76,B,20%,2023,9,,,WWW.BROADBANDBUYER.CO.,CAT6a Shielded Ethernet Cables,Other,6404,43500,HW007,,Resources,Resources,Y,06/12/2023 11:30,JPEARSON,7404,8156,N,,,,Y,07/12/2023 13:00,LBROPHY,06/12/2023,2023,9,JPEARSON,06/12/2023 11:10,N,N
************1859,31,Mr J Pearson,U,Jonny Pearson,14648,B,14648,25/10/2023,0,,01/01/1900,0,,0,,76.51,,,,,0,,,,WWW.BROADBANDBUYER.CO.,,,,,,,,,Y,06/12/2023 11:30,JPEARSON,7404,287,N,,,,Y,07/12/2023 13:00,LBROPHY,01/01/1900,0,,CCROOK,31/10/2023 10:29,,
************1859,31,Mr J Pearson,U,Jonny Pearson,10594,C,10594,23/10/2023,2023,7,06/12/2023,2023,9,2023,9,648.00,108.00,540.00,B,20%,2023,9,,,EPOSNOW,Epos Now Payments Pro with Cellular Plan 23 October 2023 - 23 October 2024,Other,6404,43500,HW018,,Resources,Resources,Y,06/12/2023 11:30,JPEARSON,7404,8156,N,,,,Y,07/12/2023 13:00,LBROPHY,06/12/2023,2023,9,JPEARSON,06/12/2023 11:20,N,N
************1859,31,Mr J Pearson,U,Jonny Pearson,14637,B,14637,23/10/2023,0,,01/01/1900,0,,0,,648.00,,,,,0,,,,EPOSNOW,,,,,,,,,Y,06/12/2023 11:30,JPEARSON,7404,287,N,,,,Y,07/12/2023 13:00,LBROPHY,01/01/1900,0,,CCROOK,31/10/2023 10:29,,
************1859,31,Mr J Pearson,U,Jonny Pearson,10593,C,10593,03/10/2023,2023,7,06/12/2023,2023,9,2023,9,"1,296.00",216.00,"1,080.00",B,20%,2023,9,,,EPOSNOW,Epos Now Payments Link 3 October 2023 - 3 October 2024 Epos Now Payments Link 3 October 2023 - 3 October 2024,Other,6404,43500,HW018,,Resources,Resources,Y,06/12/2023 11:30,JPEARSON,7404,8156,N,,,,Y,07/12/2023 13:00,LBROPHY,06/12/2023,2023,9,JPEARSON,06/12/2023 11:17,N,N
************1859,31,Mr J Pearson,U,Jonny Pearson,14662,B,14662,03/10/2023,0,,01/01/1900,0,,0,,"1,296.00",,,,,0,,,,EPOSNOW,,,,,,,,,Y,06/12/2023 11:30,JPEARSON,7404,287,N,,,,Y,07/12/2023 13:00,LBROPHY,01/01/1900,0,,CCROOK,31/10/2023 10:29,,
************2135,32,Miss O F Cordingley,U,Olivia Cordingley,10677,C,10677,26/12/2023,2023,9,05/01/2024,2023,10,2023,10,120.82,0.00,120.82,R,0%,2023,10,,,Linkedin,Recruiter Lite Monthly Subscription 120.82,Other,6401,15200,,,Resources,Resources,Y,05/01/2024 15:46,OCORDINGLEY,7451,8202,N,,,,Y,08/01/2024 09:46,JBILLINGTON,05/01/2024,2023,10,OCORDINGLEY,05/01/2024 15:42,N,N
************2135,32,Miss O F Cordingley,U,Olivia Cordingley,14814,B,14814,26/12/2023,0,,01/01/1900,0,,0,,120.82,,,,,0,,,,LINKEDIN RECRUITER 974,,,,,,,,,Y,05/01/2024 15:46,OCORDINGLEY,7451,289,N,,,,Y,08/01/2024 09:46,JBILLINGTON,01/01/1900,0,,MBLACK,02/01/2024 12:57,,
************2135,32,Miss O F Cordingley,U,Olivia Cordingley,14776,B,14776,01/12/2023,0,,01/01/1900,0,,0,,447.47,,,,,0,,,,LINKEDIN JOB 967518237,,,,,,,,,N,,,0,289,N,,,,N,,,01/01/1900,0,,MBLACK,02/01/2024 12:57,,
************2135,32,Miss O F Cordingley,U,Olivia Cordingley,10678,C,10678,26/11/2023,2023,8,05/01/2024,2023,10,2023,10,120.82,0.00,120.82,R,0%,2023,10,,,Linkedin,Recruiter Lite Monthly Subscription 120.82,Other,6401,15200,,,Resources,Resources,Y,05/01/2024 15:46,OCORDINGLEY,7451,8202,N,,,,Y,08/01/2024 09:46,JBILLINGTON,05/01/2024,2023,10,OCORDINGLEY,05/01/2024 15:42,N,N
************2135,32,Miss O F Cordingley,U,Olivia Cordingley,14739,B,14739,26/11/2023,0,,01/01/1900,0,,0,,120.82,,,,,0,,,,LINKEDIN RECRUITER 966,,,,,,,,,Y,05/01/2024 15:46,OCORDINGLEY,7451,288,N,,,,Y,08/01/2024 09:46,JBILLINGTON,01/01/1900,0,,CCROOK,29/11/2023 12:33,,
************2135,32,Miss O F Cordingley,U,Olivia Cordingley,10558,C,10558,14/11/2023,2023,8,14/11/2023,2023,8,2023,8,150.00,25.00,125.00,B,20%,2023,8,,,Veal`s Fishing,Long Service Award MW - Veal`s Fishing 150.00,Other,6401,16201,,,Resources,Resources,Y,29/11/2023 12:34,JCARTRIDGE,7385,8129,N,,,,Y,04/12/2023 13:31,JBILLINGTON,14/11/2023,2023,8,OCORDINGLEY,14/11/2023 17:46,N,N
************2135,32,Miss O F Cordingley,U,Olivia Cordingley,14702,B,14702,14/11/2023,0,,01/01/1900,0,,0,,150.00,,,,,0,,,,VEALS MAIL ORDER LIMIT,,,,,,,,,Y,29/11/2023 12:34,JCARTRIDGE,7385,288,N,,,,Y,04/12/2023 13:31,JBILLINGTON,01/01/1900,0,,CCROOK,29/11/2023 12:33,,
************2135,32,Miss O F Cordingley,U,Olivia Cordingley,14750,B,14750,01/11/2023,0,,01/01/1900,0,,0,,99.00,,,,,0,,,,INDEED JOBS,,,,,,,,,N,,,0,288,N,,,,N,,,01/01/1900,0,,CCROOK,29/11/2023 12:33,,
************2135,32,Miss O F Cordingley,U,Olivia Cordingley,10539,C,10539,01/11/2023,2023,8,01/11/2023,2023,8,2023,8,180.00,30.00,150.00,B,20%,2023,8,,,Creative Communicatiors Ltd,Communications Manager Advert - Comms2.0 180,Other,6501,15200,,,Resources,Resources,Y,29/11/2023 12:34,JCARTRIDGE,7384,8111,N,,,,Y,04/12/2023 13:31,JBILLINGTON,01/11/2023,2023,8,OCORDINGLEY,01/11/2023 11:57,N,N
************2135,32,Miss O F Cordingley,U,Olivia Cordingley,14751,B,14751,01/11/2023,0,,01/01/1900,0,,0,,180.00,,,,,0,,,,UNAWARDS TICKETS,,,,,,,,,Y,29/11/2023 12:34,JCARTRIDGE,7384,288,N,,,,Y,04/12/2023 13:31,JBILLINGTON,01/01/1900,0,,CCROOK,29/11/2023 12:33,,
************2135,32,Miss O F Cordingley,U,Olivia Cordingley,14744,B,14744,28/10/2023,0,,01/01/1900,0,,0,,426.08,,,,,0,,,,LINKEDIN JOB 956261547,,,,,,,,,N,,,0,288,N,,,,N,,,01/01/1900,0,,CCROOK,29/11/2023 12:33,,
************2135,32,Miss O F Cordingley,U,Olivia Cordingley,10679,C,10679,26/10/2023,2023,7,05/01/2024,2023,10,2023,10,120.82,0.00,120.82,R,0%,2023,10,,,Linkedin,Recruiter Lite Monthly Subscription 120.82,Other,6401,15200,,,Resources,Resources,Y,05/01/2024 15:46,OCORDINGLEY,7451,8202,N,,,,Y,08/01/2024 09:46,JBILLINGTON,05/01/2024,2023,10,OCORDINGLEY,05/01/2024 15:43,N,N
************2135,32,Miss O F Cordingley,U,Olivia Cordingley,14650,B,14650,26/10/2023,0,,01/01/1900,0,,0,,120.82,,,,,0,,,,LINKEDIN RECRUITER 955,,,,,,,,,Y,05/01/2024 15:46,OCORDINGLEY,7451,287,N,,,,Y,08/01/2024 09:46,JBILLINGTON,01/01/1900,0,,CCROOK,31/10/2023 10:29,,
************2135,32,Miss O F Cordingley,U,Olivia Cordingley,14638,B,14638,22/10/2023,0,,01/01/1900,0,,0,,425.52,,,,,0,,,,LINKEDIN JOB 954354899,,,,,,,,,N,,,0,287,N,,,,N,,,01/01/1900,0,,CCROOK,31/10/2023 10:29,,
************2135,32,Miss O F Cordingley,U,Olivia Cordingley,10478,C,10478,11/10/2023,2023,7,11/10/2023,2023,7,2023,7,141.84,23.64,118.20,B,20%,2023,7,,,MEDesign,MEDesign Back Support 141.84,Other,6955,42002,,,Resources,Resources,Y,31/10/2023 10:31,CCROOK,7338,8063,N,,,,Y,04/12/2023 13:31,JBILLINGTON,11/10/2023,2023,7,OCORDINGLEY,11/10/2023 13:19,N,N
************2135,32,Miss O F Cordingley,U,Olivia Cordingley,14678,B,14678,11/10/2023,0,,01/01/1900,0,,0,,141.84,,,,,0,,,,WWW.MEDESIGN.CO.UK,,,,,,,,,Y,31/10/2023 10:31,CCROOK,7338,287,N,,,,Y,04/12/2023 13:31,JBILLINGTON,01/01/1900,0,,CCROOK,31/10/2023 10:29,,
************2135,32,Miss O F Cordingley,U,Olivia Cordingley,10681,C,10681,04/10/2023,2023,7,05/01/2024,2023,10,2023,10,150.99,0.00,150.99,D,0%,2023,10,,,One4All,Long Service Award 150.99 One4All Voucher ML,Other,6902,16201,,,Resources,Resources,Y,05/01/2024 15:58,OCORDINGLEY,7452,8203,N,,,,Y,08/01/2024 09:46,JBILLINGTON,05/01/2024,2023,10,OCORDINGLEY,05/01/2024 15:57,N,N
************2135,32,Miss O F Cordingley,U,Olivia Cordingley,14666,B,14666,04/10/2023,0,,01/01/1900,0,,0,,150.99,,,,,0,,,,ONE4ALL,,,,,,,,,Y,05/01/2024 15:58,OCORDINGLEY,7452,287,N,,,,Y,08/01/2024 09:46,JBILLINGTON,01/01/1900,0,,CCROOK,31/10/2023 10:29,,
************6498,34,P J Holroyd,U,Pamela Holroyd,14812,B,14812,21/12/2023,0,,01/01/1900,0,,0,,"1,503.85",,,,,0,,,,REEDSRAINS.CO.UK,,,,,,,,,N,,,0,289,N,,,,N,,,01/01/1900,0,,MBLACK,02/01/2024 12:57,,
************6498,34,P J Holroyd,U,Pamela Holroyd,10587,C,10587,14/11/2023,2023,8,06/12/2023,2023,9,2023,9,209.10,34.85,174.25,B,20%,2023,9,,,Partington,N Jordan Large family accommodation,Other,5140,46814,,,Resources,Resources,Y,06/12/2023 09:34,PHOLROYD,7401,8153,N,,,,Y,08/12/2023 11:36,MBROADHURST,06/12/2023,2023,9,PHOLROYD,06/12/2023 09:33,N,N
************6498,34,P J Holroyd,U,Pamela Holroyd,14703,B,14703,14/11/2023,0,,01/01/1900,0,,0,,209.10,,,,,0,,,,PARTINGTONS HOLIDAY CE,,,,,,,,,Y,06/12/2023 09:34,PHOLROYD,7401,288,N,,,,Y,08/12/2023 11:36,MBROADHURST,01/01/1900,0,,CCROOK,29/11/2023 12:33,,
************6498,34,P J Holroyd,U,Pamela Holroyd,10585,C,10585,08/11/2023,2023,8,06/12/2023,2023,9,2023,9,36.16,6.03,30.13,B,20%,2023,9,,,trainline,One way to refuge,Other,5140,64002,DA,,Resources,Resources,Y,06/12/2023 09:34,PHOLROYD,7401,8151,N,,,,Y,08/12/2023 11:36,MBROADHURST,06/12/2023,2023,9,PHOLROYD,06/12/2023 09:19,N,N
************6498,34,P J Holroyd,U,Pamela Holroyd,14765,B,14765,08/11/2023,0,,01/01/1900,0,,0,,36.16,,,,,0,,,,TRAINLINE,,,,,,,,,Y,06/12/2023 09:34,PHOLROYD,7401,288,N,,,,Y,08/12/2023 11:36,MBROADHURST,01/01/1900,0,,CCROOK,29/11/2023 12:33,,
************6498,34,P J Holroyd,U,Pamela Holroyd,10586,C,10586,08/11/2023,2023,8,06/12/2023,2023,9,2023,9,72.75,12.13,60.62,B,20%,2023,9,,,Trainline,One way for family to Refuge,Other,5140,64002,DA,,Resources,Resources,Y,06/12/2023 09:34,PHOLROYD,7401,8152,N,,,,Y,08/12/2023 11:36,MBROADHURST,06/12/2023,2023,9,PHOLROYD,06/12/2023 09:32,N,N
************6498,34,P J Holroyd,U,Pamela Holroyd,14764,B,14764,08/11/2023,0,,01/01/1900,0,,0,,72.75,,,,,0,,,,TRAINLINE,,,,,,,,,Y,06/12/2023 09:34,PHOLROYD,7401,288,N,,,,Y,08/12/2023 11:36,MBROADHURST,01/01/1900,0,,CCROOK,29/11/2023 12:33,,
************6498,34,P J Holroyd,U,Pamela Holroyd,10583,C,10583,26/10/2023,2023,7,06/12/2023,2023,9,2023,9,238.85,39.81,199.04,B,20%,2023,9,,,Partington,Interim accommodation for large family,Other,5140,46814,,,Resources,Resources,Y,06/12/2023 09:34,PHOLROYD,7401,8148,N,,,,Y,08/12/2023 11:36,MBROADHURST,06/12/2023,2023,9,PHOLROYD,06/12/2023 09:07,N,N
************6498,34,P J Holroyd,U,Pamela Holroyd,14745,B,14745,26/10/2023,0,,01/01/1900,0,,0,,238.85,,,,,0,,,,PARTINGTONS HOLIDAY CE,,,,,,,,,Y,06/12/2023 09:34,PHOLROYD,7401,288,N,,,,Y,08/12/2023 11:36,MBROADHURST,01/01/1900,0,,CCROOK,29/11/2023 12:33,,
************6498,34,P J Holroyd,U,Pamela Holroyd,10584,C,10584,26/10/2023,2023,7,06/12/2023,2023,9,2023,9,695.30,115.88,579.42,B,20%,2023,9,,,Partington,N Jordan family accommodation,Other,5140,46814,,,Resources,Resources,Y,06/12/2023 09:34,PHOLROYD,7401,8150,N,,,,Y,08/12/2023 11:36,MBROADHURST,06/12/2023,2023,9,PHOLROYD,06/12/2023 09:16,N,N
************6498,34,P J Holroyd,U,Pamela Holroyd,14746,B,14746,26/10/2023,0,,01/01/1900,0,,0,,695.30,,,,,0,,,,PARTINGTONS HOLIDAY CE,,,,,,,,,Y,06/12/2023 09:34,PHOLROYD,7401,288,N,,,,Y,08/12/2023 11:36,MBROADHURST,01/01/1900,0,,CCROOK,29/11/2023 12:33,,
************6498,34,P J Holroyd,U,Pamela Holroyd,10495,C,10495,21/10/2023,2023,7,17/10/2023,2023,7,2023,7,"1,386.67",231.11,"1,155.56",B,20%,2023,7,,,Partington,Large disabled family accommodation,Other,5140,46814,,,Resources,Resources,Y,17/10/2023 11:17,PHOLROYD,7329,8077,N,,,,Y,17/10/2023 12:39,MBROADHURST,17/10/2023,2023,7,PHOLROYD,17/10/2023 11:15,N,N
************6498,34,P J Holroyd,U,Pamela Holroyd,10538,C,10538,20/10/2023,2023,7,31/10/2023,2023,7,2023,7,15.27,2.55,12.72,B,20%,2023,7,,,NORTHERN RAIL LTD,One way journey D Berry,Other,5140,46846,,,Resources,Resources,Y,31/10/2023 15:20,PHOLROYD,7366,8110,N,,,,Y,01/11/2023 10:16,MBROADHURST,31/10/2023,2023,7,PHOLROYD,31/10/2023 15:19,N,N
************6498,34,P J Holroyd,U,Pamela Holroyd,14639,B,14639,20/10/2023,0,,01/01/1900,0,,0,,15.27,,,,,0,,,,TRAINLINE,,,,,,,,,Y,31/10/2023 15:20,PHOLROYD,7366,287,N,,,,Y,01/11/2023 10:16,MBROADHURST,01/01/1900,0,,CCROOK,31/10/2023 10:29,,
************6498,34,P J Holroyd,U,Pamela Holroyd,10537,C,10537,19/10/2023,2023,7,31/10/2023,2023,7,2023,7,468.35,78.06,390.29,B,20%,2023,7,,,Partington,TA for household Jordan,Other,5140,46814,,,Resources,Resources,Y,31/10/2023 15:20,PHOLROYD,7366,8109,N,,,,Y,01/11/2023 10:16,MBROADHURST,31/10/2023,2023,7,PHOLROYD,31/10/2023 15:17,N,N
************6498,34,P J Holroyd,U,Pamela Holroyd,14632,B,14632,19/10/2023,0,,01/01/1900,0,,0,,468.35,,,,,0,,,,PARTINGTONS HOLIDAY CE,,,,,,,,,Y,31/10/2023 15:20,PHOLROYD,7366,287,N,,,,Y,01/11/2023 10:16,MBROADHURST,01/01/1900,0,,CCROOK,31/10/2023 10:29,,
************6498,34,P J Holroyd,U,Pamela Holroyd,10536,C,10536,10/10/2023,2023,7,31/10/2023,2023,7,2023,7,466.90,77.82,389.08,B,20%,2023,7,,,Partington,family accommodation,Other,5140,46814,,,Resources,Resources,Y,31/10/2023 15:20,PHOLROYD,7366,8108,N,,,,Y,01/11/2023 10:16,MBROADHURST,31/10/2023,2023,7,PHOLROYD,31/10/2023 15:15,N,N
************6498,34,P J Holroyd,U,Pamela Holroyd,14676,B,14676,10/10/2023,0,,01/01/1900,0,,0,,466.90,,,,,0,,,,PARTINGTONS HOLIDAY CE,,,,,,,,,Y,31/10/2023 15:20,PHOLROYD,7366,287,N,,,,Y,01/11/2023 10:16,MBROADHURST,01/01/1900,0,,CCROOK,31/10/2023 10:29,,
************8505,35,ROBERT L GREAVES,S,Tracey Waistle,14808,B,14808,20/12/2023,0,,01/01/1900,0,,0,,84.60,,,,,0,,,,THE LOCK SHOP,,,,,,,,,Y,02/01/2024 15:31,JCARTRIDGE,7443,289,N,,,,Y,02/01/2024 15:39,GSCOTT,01/01/1900,0,,MBLACK,02/01/2024 12:57,,
************8505,35,ROBERT L GREAVES,S,Tracey Waistle,10648,C,10648,19/12/2023,2023,9,02/01/2024,2023,10,2023,10,84.60,0.00,84.60,E,0%,2023,10,Y,416501973,The Lock Shop,5 metal Keys to purple level,Other,3260,42002,,,People and Places,People and Places,Y,02/01/2024 15:31,JCARTRIDGE,7443,8192,N,,,,Y,02/01/2024 15:39,GSCOTT,02/01/2024,2023,10,CCLOHERTYJONES,02/01/2024 14:58,N,N
************8505,35,ROBERT L GREAVES,S,Tracey Waistle,10630,C,10630,06/12/2023,2023,9,19/12/2023,2023,9,2023,9,19.98,3.33,16.65,B,20%,2023,9,Y,232555575,screwfix,Polo Shirt x2,Other,6902,41600,,,People and Places,People and Places,Y,02/01/2024 12:59,JCARTRIDGE,7427,8175,N,,,,Y,02/01/2024 14:22,GSCOTT,19/12/2023,2023,9,CCLOHERTYJONES,19/12/2023 16:56,N,N
************8505,35,ROBERT L GREAVES,S,Tracey Waistle,14779,B,14779,06/12/2023,0,,01/01/1900,0,,0,,19.98,,,,,0,,,,SCREWFIX DIR LTD,,,,,,,,,Y,02/01/2024 12:59,JCARTRIDGE,7427,289,N,,,,Y,02/01/2024 14:22,GSCOTT,01/01/1900,0,,MBLACK,02/01/2024 12:57,,
************8505,35,ROBERT L GREAVES,S,Tracey Waistle,10629,C,10629,04/12/2023,2023,9,19/12/2023,2023,9,2023,9,433.20,72.20,361.00,B,20%,2023,9,,416501973,the lock shop,6 Abus padlocks to pass 506 2 Multilock NE12 Padlock with long shackle to pass green key,Other,6902,,,,People and Places,People and Places,Y,02/01/2024 12:59,JCARTRIDGE,7426,8175,N,,,,Y,02/01/2024 14:22,GSCOTT,19/12/2023,2023,9,CCLOHERTYJONES,19/12/2023 16:53,N,N
************8505,35,ROBERT L GREAVES,S,Tracey Waistle,14778,B,14778,04/12/2023,0,,01/01/1900,0,,0,,433.20,,,,,0,,,,THE LOCK SHOP,,,,,,,,,Y,02/01/2024 12:59,JCARTRIDGE,7426,289,N,,,,Y,02/01/2024 14:22,GSCOTT,01/01/1900,0,,MBLACK,02/01/2024 12:57,,
************8505,35,ROBERT L GREAVES,S,Tracey Waistle,10557,C,10557,01/11/2023,2023,8,09/11/2023,2023,8,2023,8,60.00,10.00,50.00,B,20%,2023,8,Y,GB232425103,Fleetwood Beacon Marina,20 x 2024 tide tables,Other,3260,42002,,,People and Places,People and Places,Y,29/11/2023 12:34,JCARTRIDGE,7386,8127,N,,,,Y,04/12/2023 10:44,GSCOTT,09/11/2023,2023,8,CCLOHERTYJONES,09/11/2023 17:37,N,N
************8505,35,ROBERT L GREAVES,S,Tracey Waistle,14752,B,14752,01/11/2023,0,,01/01/1900,0,,0,,60.00,,,,,0,,,,ASSOCIATED BRITISH POR,,,,,,,,,Y,29/11/2023 12:34,JCARTRIDGE,7386,288,N,,,,Y,04/12/2023 10:44,GSCOTT,01/01/1900,0,,CCROOK,29/11/2023 12:33,,
************8505,35,ROBERT L GREAVES,S,Tracey Waistle,10513,C,10513,18/10/2023,2023,7,23/10/2023,2023,7,2023,7,"2,568.00",428.00,"2,140.00",B,20%,2023,7,Y,GB239905183,safe fence ltd,4 temporary Fence panel Stillage,Other,3260,42002,,,People and Places,People and Places,Y,31/10/2023 10:31,CCROOK,7339,8085,N,,,,Y,31/10/2023 15:33,GSCOTT,23/10/2023,2023,7,CCLOHERTYJONES,23/10/2023 15:46,N,N
************8505,35,ROBERT L GREAVES,S,Tracey Waistle,14633,B,14633,18/10/2023,0,,01/01/1900,0,,0,,"2,568.00",,,,,0,,,,SAFE FENCE,,,,,,,,,Y,31/10/2023 10:31,CCROOK,7339,287,N,,,,Y,31/10/2023 15:33,GSCOTT,01/01/1900,0,,CCROOK,31/10/2023 10:29,,
************8505,35,ROBERT L GREAVES,S,Tracey Waistle,10489,C,10489,13/10/2023,2023,7,16/10/2023,2023,7,2023,7,132.00,22.00,110.00,B,20%,2023,7,Y,895558261,fenceuk.co.uk,100 fence coupler plus delivery,Other,3260,42002,,,People and Places,People and Places,Y,31/10/2023 10:31,CCROOK,7340,8072,N,,,,Y,31/10/2023 15:33,GSCOTT,16/10/2023,2023,7,CCLOHERTYJONES,16/10/2023 17:22,N,N
************8505,35,ROBERT L GREAVES,S,Tracey Waistle,14624,B,14624,13/10/2023,0,,01/01/1900,0,,0,,132.00,,,,,0,,,,FENCE UK,,,,,,,,,Y,31/10/2023 10:31,CCROOK,7340,287,N,,,,Y,31/10/2023 15:33,GSCOTT,01/01/1900,0,,CCROOK,31/10/2023 10:29,,
************8505,35,ROBERT L GREAVES,S,Tracey Waistle,14680,B,14680,11/10/2023,0,,01/01/1900,0,,0,,138.82,,,,,0,,,,THE LOCK SHOP,,,,,,,,,Y,31/10/2023 14:39,CCROOK,7364,287,N,,,,Y,31/10/2023 15:33,GSCOTT,01/01/1900,0,,CCROOK,31/10/2023 10:29,,
************8505,35,ROBERT L GREAVES,S,Tracey Waistle,10488,C,10488,10/10/2023,2023,7,16/10/2023,2023,7,2023,7,138.82,23.13,115.69,B,20%,2023,7,Y,416501973,the lock shop,1 NE10 padlock mtl to white key level. 1 mtl white level key,Other,3260,42002,,,People and Places,People and Places,Y,31/10/2023 14:39,CCROOK,7364,8071,N,,,,Y,31/10/2023 15:33,GSCOTT,16/10/2023,2023,7,CCLOHERTYJONES,16/10/2023 17:20,N,N
************8505,35,ROBERT L GREAVES,S,Tracey Waistle,10487,C,10487,04/10/2023,2023,7,16/10/2023,2023,7,2023,7,111.99,18.67,93.32,B,20%,2023,7,Y,232555575,screwfix,detector for green lasers,Other,6902,40100,,,People and Places,People and Places,Y,31/10/2023 10:31,CCROOK,7341,8070,N,,,,Y,31/10/2023 15:33,GSCOTT,16/10/2023,2023,7,CCLOHERTYJONES,16/10/2023 17:16,N,N
************8505,35,ROBERT L GREAVES,S,Tracey Waistle,14667,B,14667,04/10/2023,0,,01/01/1900,0,,0,,111.99,,,,,0,,,,SCREWFIX DIR LTD,,,,,,,,,Y,31/10/2023 10:31,CCROOK,7341,287,N,,,,Y,31/10/2023 15:33,GSCOTT,01/01/1900,0,,CCROOK,31/10/2023 10:29,,
************8505,35,ROBERT L GREAVES,S,Tracey Waistle,10474,C,10474,04/10/2023,2023,7,09/10/2023,2023,7,2023,7,537.96,89.66,448.30,B,20%,2023,7,Y,408556737,toolstation,dewalt tripod and laser,Other,6902,40100,,,People and Places,People and Places,Y,31/10/2023 10:31,CCROOK,7342,8061,N,,,,Y,31/10/2023 15:33,GSCOTT,09/10/2023,2023,7,CCLOHERTYJONES,09/10/2023 18:00,N,N
************8505,35,ROBERT L GREAVES,S,Tracey Waistle,14668,B,14668,04/10/2023,0,,01/01/1900,0,,0,,537.96,,,,,0,,,,TOOLSTATION LIMITED,,,,,,,,,Y,31/10/2023 10:31,CCROOK,7342,287,N,,,,Y,31/10/2023 15:33,GSCOTT,01/01/1900,0,,CCROOK,31/10/2023 10:29,,
************8406,36,Mrs Carol Southern,U,Carol Southern,10617,C,10617,21/11/2023,2023,8,17/12/2023,2023,9,2023,9,39.99,6.67,33.32,B,20%,2023,9,,,CURRYS,New heater for our staff office as the old one broke.,Other,6106,40100,,,People and Places,People and Places,Y,19/12/2023 16:35,JCARTRIDGE,7411,8170,N,,,,Y,19/12/2023 16:36,MBROADHURST,17/12/2023,2023,9,CSOUTHERN,17/12/2023 17:39,N,N
************8406,36,Mrs Carol Southern,U,Carol Southern,14722,B,14722,21/11/2023,0,,01/01/1900,0,,0,,39.99,,,,,0,,,,CURRYS ONLINE,,,,,,,,,Y,19/12/2023 16:35,JCARTRIDGE,7411,288,N,,,,Y,19/12/2023 16:36,MBROADHURST,01/01/1900,0,,CCROOK,29/11/2023 12:33,,
************8406,36,Mrs Carol Southern,U,Carol Southern,10618,C,10618,21/11/2023,2023,8,17/12/2023,2023,9,2023,9,51.42,8.57,42.85,B,20%,2023,9,,,AMAZON.CO.UK,Materials for wreath making workshops at various events in the borough.,Other,6106,40100,,,People and Places,People and Places,Y,19/12/2023 16:35,JCARTRIDGE,7411,8171,N,,,,Y,19/12/2023 16:36,MBROADHURST,17/12/2023,2023,9,CSOUTHERN,17/12/2023 17:45,N,N
************8406,36,Mrs Carol Southern,U,Carol Southern,14721,B,14721,21/11/2023,0,,01/01/1900,0,,0,,51.42,,,,,0,,,,AMZNMKTPLACE,,,,,,,,,Y,19/12/2023 16:35,JCARTRIDGE,7411,288,N,,,,Y,19/12/2023 16:36,MBROADHURST,01/01/1900,0,,CCROOK,29/11/2023 12:33,,
************8406,36,Mrs Carol Southern,U,Carol Southern,10567,C,10567,17/10/2023,2023,7,22/11/2023,2023,8,2023,8,69.00,0.00,69.00,C,0%,2023,8,,,Morrisons,Collection of food for the Active Wyre award recipients - civic centre,Other,3070,46842,,,People and Places,People and Places,Y,04/12/2023 10:09,JCARTRIDGE,7400,8138,N,,,,Y,04/12/2023 11:34,MBROADHURST,22/11/2023,2023,8,CSOUTHERN,22/11/2023 10:27,N,N
************8406,36,Mrs Carol Southern,U,Carol Southern,14627,B,14627,17/10/2023,0,,01/01/1900,0,,0,,69.00,,,,,0,,,,WM MORRISONS STORE,,,,,,,,,Y,04/12/2023 10:09,JCARTRIDGE,7400,287,N,,,,Y,04/12/2023 11:34,MBROADHURST,01/01/1900,0,,CCROOK,31/10/2023 10:29,,
************8406,36,Mrs Carol Southern,U,Carol Southern,10565,C,10565,12/10/2023,2023,7,22/11/2023,2023,8,2023,8,180.73,30.12,150.61,B,20%,2023,8,,,A2BOffice suppliers,Contour Ergonomics Sit/Stand Workstation Black CE04633 Product Code: CE04633 Pack Size: 1/1  116.85  1  23.37 (20%)  116.85 Kensington Solemate Tilting Footrest Black/Grey 56145 Product Code: AC11992 Pack Size: 1/1  33.76  1  6.75 (20%)  33.76,Other,6106,19005,,,People and Places,People and Places,Y,04/12/2023 10:09,JCARTRIDGE,7400,8136,N,,,,Y,04/12/2023 11:34,MBROADHURST,22/11/2023,2023,8,CSOUTHERN,22/11/2023 10:14,N,N
************8406,36,Mrs Carol Southern,U,Carol Southern,14683,B,14683,12/10/2023,0,,01/01/1900,0,,0,,180.73,,,,,0,,,,A2B OFFICE SUPPLIES,,,,,,,,,Y,04/12/2023 10:09,JCARTRIDGE,7400,287,N,,,,Y,04/12/2023 11:34,MBROADHURST,01/01/1900,0,,CCROOK,31/10/2023 10:29,,
************8406,36,Mrs Carol Southern,U,Carol Southern,10566,C,10566,11/10/2023,2023,7,22/11/2023,2023,8,2023,8,20.00,0.00,20.00,C,0%,2023,8,,,Morrisons,Food for the winners and highly commended individuals for the Active Wyre Awards at the Civic Centre.,Other,3070,46842,,,People and Places,People and Places,Y,04/12/2023 10:09,JCARTRIDGE,7400,8137,N,,,,Y,04/12/2023 11:34,MBROADHURST,22/11/2023,2023,8,CSOUTHERN,22/11/2023 10:26,N,N
************8406,36,Mrs Carol Southern,U,Carol Southern,14679,B,14679,11/10/2023,0,,01/01/1900,0,,0,,20.00,,,,,0,,,,WM MORRISONS STORE,,,,,,,,,Y,04/12/2023 10:09,JCARTRIDGE,7400,287,N,,,,Y,04/12/2023 11:34,MBROADHURST,01/01/1900,0,,CCROOK,31/10/2023 10:29,,
************4003,37,Veronica Wilson,U,Veronica Wilson,10570,C,10570,21/11/2023,2023,8,24/11/2023,2023,8,2023,8,413.68,0.00,413.68,D,0%,2023,8,,,Booths,Mayors Charity Fundraiser (23 Nov) - purchase of food and drink from Booths,Other,1272,1600,,,Resources,Resources,Y,29/11/2023 12:34,VWILSON,7387,8140,N,,,,Y,29/11/2023 14:13,CJAMES,24/11/2023,2023,8,VWILSON,24/11/2023 09:38,N,N
************4003,37,Veronica Wilson,U,Veronica Wilson,14723,B,14723,21/11/2023,0,,01/01/1900,0,,0,,413.68,,,,,0,,,,E H BOOTH & CO,,,,,,,,,Y,29/11/2023 12:34,VWILSON,7387,288,N,,,,Y,29/11/2023 14:13,CJAMES,01/01/1900,0,,CCROOK,29/11/2023 12:33,,
************4003,37,Veronica Wilson,U,Veronica Wilson,10572,C,10572,02/11/2023,2023,8,24/11/2023,2023,8,2023,8,83.66,0.00,83.66,D,0%,2023,8,,,HM Revenue and Customs,HMRC Elections Payroll - PAYE Earlier Year Update Underpayment Tax Transaction Fee,Other,2014,46008,,,Resources,Resources,Y,29/11/2023 13:26,VWILSON,7396,8141,N,,,,Y,29/11/2023 14:13,CJAMES,24/11/2023,2023,8,VWILSON,24/11/2023 09:50,N,N
************4003,37,Veronica Wilson,U,Veronica Wilson,10571,C,10571,02/11/2023,2023,8,24/11/2023,2023,8,2023,8,"4,246.80",0.00,"4,246.80",D,0%,2023,8,,,HM Revenue and Customs,HMRC Elections Payroll - PAYE Earlier Year Update Underpayment Tax,Other,9541,1066,,,Resources,Resources,Y,29/11/2023 13:26,VWILSON,7396,8141,N,,,,Y,29/11/2023 14:13,CJAMES,24/11/2023,2023,8,VWILSON,24/11/2023 09:45,N,N
************4003,37,Veronica Wilson,U,Veronica Wilson,14758,B,14758,02/11/2023,0,,01/01/1900,0,,0,,"4,330.46",,,,,0,,,,HMRC TPS,,,,,,,,,Y,29/11/2023 13:26,VWILSON,7396,288,N,,,,Y,29/11/2023 14:13,CJAMES,01/01/1900,0,,CCROOK,29/11/2023 12:33,,
************9143,38,Julie Cartridge,U,Julie Cartridge,10610,C,10610,11/12/2023,2023,9,11/12/2023,2023,9,2023,9,6.48,0.00,6.48,C,0%,2023,9,,,HOME BARGAINS,2 x shortbread biscuits Raffle prizes for Mission Christmas,Other,6503,46842,,,Resources,Resources,Y,02/01/2024 15:21,JCARTRIDGE,7442,8166,N,,,,Y,02/01/2024 15:31,VWILSON,11/12/2023,2023,9,JCARTRIDGE,11/12/2023 14:02,N,N
************9143,38,Julie Cartridge,U,Julie Cartridge,10611,C,10611,11/12/2023,2023,9,11/12/2023,2023,9,2023,9,10.00,0.00,10.00,D,0%,2023,9,,,The Lunch Box,2 x 5.00 vouchers Raffle prizes for Mission Christmas,Other,6503,46842,,,Resources,Resources,Y,02/01/2024 12:59,JCARTRIDGE,7429,8167,N,,,,Y,02/01/2024 13:47,VWILSON,11/12/2023,2023,9,JCARTRIDGE,11/12/2023 14:04,N,N
************9143,38,Julie Cartridge,U,Julie Cartridge,14789,B,14789,11/12/2023,0,,01/01/1900,0,,0,,10.00,,,,,0,,,,THE LUNCHBOX POULTON,,,,,,,,,Y,02/01/2024 12:59,JCARTRIDGE,7429,289,N,,,,Y,02/01/2024 13:47,VWILSON,01/01/1900,0,,MBLACK,02/01/2024 12:57,,
************9143,38,Julie Cartridge,U,Julie Cartridge,10650,C,10650,11/12/2023,2023,9,02/01/2024,2023,10,2023,10,29.19,4.87,24.32,B,20%,2023,10,,,HomeBargains,1 x selection box 1 x slipper gift set 1 x garnier gift set 1 x dove gift set 1 x L`oreal gift set 1 x lynx gift set 1 x mulled wine Raffle prizes for Mission Christmas,Other,6503,46842,,,Resources,Resources,Y,02/01/2024 15:21,JCARTRIDGE,7442,8194,N,,,,Y,02/01/2024 15:31,VWILSON,02/01/2024,2023,10,JCARTRIDGE,02/01/2024 15:20,N,N
************9143,38,Julie Cartridge,U,Julie Cartridge,14788,B,14788,11/12/2023,0,,01/01/1900,0,,0,,35.67,,,,,0,,,,HOME BARGAINS,,,,,,,,,Y,02/01/2024 15:21,JCARTRIDGE,7442,289,N,,,,Y,02/01/2024 15:31,VWILSON,01/01/1900,0,,MBLACK,02/01/2024 12:57,,
************9143,38,Julie Cartridge,U,Julie Cartridge,10608,C,10608,11/12/2023,2023,9,11/12/2023,2023,9,2023,9,86.00,0.00,86.00,D,0%,2023,9,,,Morrison,2 x Victoria Biscuits 2 x Foxs Biscuits 1 x Wine Gums 1 x Jelly Babies 1 x Roses tub 1 x Quality Street tub 2 x Heroes tub 1 x box Milk Tray 1 x Baileys Fudge 1 x lindor Truffles 1 x selection box 1 x pack Peroni Bottles 1 x Tequila Rose Gift Set 1 x Jack,Other,6503,46842,,,Resources,Resources,Y,02/01/2024 12:59,JCARTRIDGE,7428,8164,N,,,,Y,02/01/2024 13:47,VWILSON,11/12/2023,2023,9,JCARTRIDGE,11/12/2023 13:47,N,N
************9143,38,Julie Cartridge,U,Julie Cartridge,14787,B,14787,11/12/2023,0,,01/01/1900,0,,0,,86.00,,,,,0,,,,WM MORRISONS STORE,,,,,,,,,Y,02/01/2024 12:59,JCARTRIDGE,7428,289,N,,,,Y,02/01/2024 13:47,VWILSON,01/01/1900,0,,MBLACK,02/01/2024 12:57,,
************9143,38,Julie Cartridge,U,Julie Cartridge,10607,C,10607,11/12/2023,2023,9,11/12/2023,2023,9,2023,9,102.61,17.10,85.51,B,20%,2023,9,,,Aldi,4 x Bottle of BallyCastle 4 x Bottle of White Wine 3 x Bottle of Red Wine 3 x Bottles Prosecco 3 x Bottle Rose Wine 4 x Guinness 4 x Carling Raffle Prizes for Mission Christmas,Other,6503,46842,,,Resources,Resources,Y,02/01/2024 12:59,JCARTRIDGE,7430,8163,N,,,,Y,02/01/2024 13:47,VWILSON,11/12/2023,2023,9,JCARTRIDGE,11/12/2023 13:40,N,N
************9143,38,Julie Cartridge,U,Julie Cartridge,14790,B,14790,11/12/2023,0,,01/01/1900,0,,0,,102.61,,,,,0,,,,ALDI 104 773,,,,,,,,,Y,02/01/2024 12:59,JCARTRIDGE,7430,289,N,,,,Y,02/01/2024 13:47,VWILSON,01/01/1900,0,,MBLACK,02/01/2024 12:57,,
************9143,38,Julie Cartridge,U,Julie Cartridge,10560,C,10560,13/11/2023,2023,8,15/11/2023,2023,8,2023,8,103.00,0.00,103.00,E,0%,2023,8,,,Kennsington Community Learning,AAT Exam - L3 Financial Accounting Preparing Financial Statements (FAPS) in Liverpool for Andy Palfreyman,Other,6402,17012,,,Resources,Resources,Y,29/11/2023 12:34,JCARTRIDGE,7390,8131,N,,,,Y,04/12/2023 10:31,VWILSON,15/11/2023,2023,8,JCARTRIDGE,15/11/2023 13:31,N,N
************9143,38,Julie Cartridge,U,Julie Cartridge,14701,B,14701,13/11/2023,0,,01/01/1900,0,,0,,103.00,,,,,0,,,,KCLC ONLINE,,,,,,,,,Y,29/11/2023 12:34,JCARTRIDGE,7390,288,N,,,,Y,04/12/2023 10:31,VWILSON,01/01/1900,0,,CCROOK,29/11/2023 12:33,,
************9143,38,Julie Cartridge,U,Julie Cartridge,10531,C,10531,30/10/2023,2023,7,30/10/2023,2023,7,2023,7,54.00,9.00,45.00,B,20%,2023,7,,,Town and Country Planning Association,Ticket for Town and Country Planning Ass. training session - An Introduction to planning and Planning reform for Cllr Dulcie Atkins on 8-11-23,Other,2000,17012,,,Resources,Resources,Y,29/11/2023 12:34,JCARTRIDGE,7389,8104,N,,,,Y,04/12/2023 10:31,VWILSON,30/10/2023,2023,7,JCARTRIDGE,30/10/2023 15:38,N,N
************9143,38,Julie Cartridge,U,Julie Cartridge,14689,B,14689,30/10/2023,0,,01/01/1900,0,,0,,54.00,,,,,0,,,,TOWN & COUNTRY PA,,,,,,,,,Y,29/11/2023 12:34,JCARTRIDGE,7389,288,N,,,,Y,04/12/2023 10:31,VWILSON,01/01/1900,0,,CCROOK,29/11/2023 12:33,,
************9143,38,Julie Cartridge,U,Julie Cartridge,10530,C,10530,30/10/2023,2023,7,30/10/2023,2023,7,2023,7,162.00,27.00,135.00,B,20%,2023,7,,,Town and Country Planning Association,"External training course for Cllrs Richard Rendell, Cheryl Raynor and Collette Rushforth on 08/11/2023",Other,2000,17012,,,Resources,Resources,Y,29/11/2023 12:34,JCARTRIDGE,7388,8103,N,,,,Y,04/12/2023 10:30,VWILSON,30/10/2023,2023,7,JCARTRIDGE,30/10/2023 10:41,N,N
************9143,38,Julie Cartridge,U,Julie Cartridge,14688,B,14688,30/10/2023,0,,01/01/1900,0,,0,,162.00,,,,,0,,,,TOWN & COUNTRY PA,,,,,,,,,Y,29/11/2023 12:34,JCARTRIDGE,7388,288,N,,,,Y,04/12/2023 10:30,VWILSON,01/01/1900,0,,CCROOK,29/11/2023 12:33,,
************9143,38,Julie Cartridge,U,Julie Cartridge,10518,C,10518,24/10/2023,2023,7,24/10/2023,2023,7,2023,7,34.94,0.00,34.94,C,0%,2023,7,,,The Trainline,Train Tickets for Lynne Crompton for Land Registry Regional Workshop on 31/10/23 Poulton to Leeds return,Travel and Accommodation,6400,33000,,,Resources,Resources,Y,31/10/2023 10:31,CCROOK,7350,8090,N,,,,Y,03/11/2023 13:11,VWILSON,24/10/2023,2023,7,JCARTRIDGE,24/10/2023 10:46,N,N
************9143,38,Julie Cartridge,U,Julie Cartridge,14646,B,14646,24/10/2023,0,,01/01/1900,0,,0,,34.94,,,,,0,,,,TRAINLINE,,,,,,,,,Y,31/10/2023 10:31,CCROOK,7350,287,N,,,,Y,03/11/2023 13:11,VWILSON,01/01/1900,0,,CCROOK,31/10/2023 10:29,,
************9143,38,Julie Cartridge,U,Julie Cartridge,10515,C,10515,23/10/2023,2023,7,24/10/2023,2023,7,2023,7,12.83,0.00,12.83,C,0%,2023,7,,,The Trainline,Train Tickets for Daphne Courtenage for ADSO Conference for 23/11/23 travelling from London Marylebone to Oxford Parkway,Travel and Accommodation,2001,33000,,,Resources,Resources,Y,31/10/2023 10:31,CCROOK,7347,8087,N,,,,Y,03/11/2023 13:11,VWILSON,24/10/2023,2023,7,JCARTRIDGE,24/10/2023 10:29,N,N
************9143,38,Julie Cartridge,U,Julie Cartridge,14643,B,14643,23/10/2023,0,,01/01/1900,0,,0,,12.83,,,,,0,,,,TRAINLINE,,,,,,,,,Y,31/10/2023 10:31,CCROOK,7347,287,N,,,,Y,03/11/2023 13:11,VWILSON,01/01/1900,0,,CCROOK,31/10/2023 10:29,,
************9143,38,Julie Cartridge,U,Julie Cartridge,10514,C,10514,23/10/2023,2023,7,24/10/2023,2023,7,2023,7,42.58,0.00,42.58,C,0%,2023,7,,,The Trainline,Train Tickets for Daphne Courtenage for ADSO Conference on 22/11/23 from Poulton to London,Travel and Accommodation,2001,33000,,,Resources,Resources,Y,31/10/2023 10:31,CCROOK,7346,8086,N,,,,Y,03/11/2023 13:11,VWILSON,24/10/2023,2023,7,JCARTRIDGE,24/10/2023 10:27,N,N
************9143,38,Julie Cartridge,U,Julie Cartridge,14642,B,14642,23/10/2023,0,,01/01/1900,0,,0,,42.58,,,,,0,,,,TRAINLINE,,,,,,,,,Y,31/10/2023 10:31,CCROOK,7346,287,N,,,,Y,03/11/2023 13:11,VWILSON,01/01/1900,0,,CCROOK,31/10/2023 10:29,,
************9143,38,Julie Cartridge,U,Julie Cartridge,10517,C,10517,23/10/2023,2023,7,24/10/2023,2023,7,2023,7,55.06,9.18,45.88,B,20%,2023,7,,,TRAVELODGE,Invoice No 105389138 Accommodation at Oxford Peartree Travelodge booked for Daphne Courtenage from 23/11/23 to 24/11/23 for ADSO Conference,Travel and Accommodation,2001,33000,,,Resources,Resources,Y,31/10/2023 10:31,CCROOK,7349,8089,N,,,,Y,03/11/2023 13:11,VWILSON,24/10/2023,2023,7,JCARTRIDGE,24/10/2023 10:38,N,N
************9143,38,Julie Cartridge,U,Julie Cartridge,14645,B,14645,23/10/2023,0,,01/01/1900,0,,0,,55.06,,,,,0,,,,TRAVELODGE,,,,,,,,,Y,31/10/2023 10:31,CCROOK,7349,287,N,,,,Y,03/11/2023 13:11,VWILSON,01/01/1900,0,,CCROOK,31/10/2023 10:29,,
************9143,38,Julie Cartridge,U,Julie Cartridge,10516,C,10516,23/10/2023,2023,7,24/10/2023,2023,7,2023,7,82.33,0.00,82.33,C,0%,2023,7,,,The Trainline,Train Tickets for Daphne Courtenage for ADSO Conference on 24/11/23 from Oxford Parkway to Poulton,Travel and Accommodation,2001,33000,,,Resources,Resources,Y,31/10/2023 10:31,CCROOK,7348,8088,N,,,,Y,03/11/2023 13:11,VWILSON,24/10/2023,2023,7,JCARTRIDGE,24/10/2023 10:31,N,N
************9143,38,Julie Cartridge,U,Julie Cartridge,14644,B,14644,23/10/2023,0,,01/01/1900,0,,0,,82.33,,,,,0,,,,TRAINLINE,,,,,,,,,Y,31/10/2023 10:31,CCROOK,7348,287,N,,,,Y,03/11/2023 13:11,VWILSON,01/01/1900,0,,CCROOK,31/10/2023 10:29,,
************9143,38,Julie Cartridge,U,Julie Cartridge,10522,C,10522,18/10/2023,2023,7,24/10/2023,2023,7,2023,7,-26.95,0.00,-26.95,C,0%,2023,7,,,Avanti,Avanti West Coast Delay Repay - Claim AWC-3555-565-275 for Lynne Crompton for journey Birmingham to Poulton on 11-10-23,Travel and Accommodation,6400,33000,,,Resources,Resources,Y,31/10/2023 10:31,CCROOK,7344,8095,N,,,,Y,03/11/2023 13:11,VWILSON,24/10/2023,2023,7,JCARTRIDGE,24/10/2023 13:07,N,N
************9143,38,Julie Cartridge,U,Julie Cartridge,14635,B,14635,18/10/2023,0,,01/01/1900,0,,0,,-26.95,,,,,0,,,,WESTCOAST RAIL,,,,,,,,,Y,31/10/2023 10:31,CCROOK,7344,287,N,,,,Y,03/11/2023 13:11,VWILSON,01/01/1900,0,,CCROOK,31/10/2023 10:29,,
************9143,38,Julie Cartridge,U,Julie Cartridge,14634,B,14634,18/10/2023,0,,01/01/1900,0,,0,,108.98,,,,,0,,,,EXPRESS BY HOLIDAY INN,,,,,,,,,Y,15/11/2023 13:25,JCARTRIDGE,7377,287,N,,,,Y,15/11/2023 13:27,VWILSON,01/01/1900,0,,CCROOK,31/10/2023 10:29,,
************9143,38,Julie Cartridge,U,Julie Cartridge,10508,C,10508,16/10/2023,2023,7,17/10/2023,2023,7,2023,7,15.00,0.00,15.00,E,0%,2023,7,,,Eventbrite,"One ticket for training webinar Rescue, Reuse & Regenerate on 16th November for Mark Fenton",Other,6600,17010,,,Resources,Resources,Y,31/10/2023 10:31,CCROOK,7343,8081,N,,,,Y,03/11/2023 13:11,VWILSON,17/10/2023,2023,7,JCARTRIDGE,17/10/2023 16:49,N,N
************9143,38,Julie Cartridge,U,Julie Cartridge,14626,B,14626,16/10/2023,0,,01/01/1900,0,,0,,15.00,,,,,0,,,,EB RESCUE REUSE AMP R,,,,,,,,,Y,31/10/2023 10:31,CCROOK,7343,287,N,,,,Y,03/11/2023 13:11,VWILSON,01/01/1900,0,,CCROOK,31/10/2023 10:29,,
************9143,38,Julie Cartridge,U,Julie Cartridge,10519,C,10519,04/10/2023,2023,7,24/10/2023,2023,7,2023,7,54.00,0.00,54.00,D,0%,2023,7,,,LANCASHIRE COUNTY COUNCIL,"Bay suspension for use of 2 bays outside 62-64 Victoria Road West, Cleveleys FY5 1AG to park a mobile office for use by Wyre Council to undertake a public consultation exercise. Ref: UKSPF Cleveleys Town Centre Study",Other,3786,46841,SPF01,,Resources,Resources,Y,31/10/2023 10:31,CCROOK,7351,8091,N,,,,Y,03/11/2023 13:11,VWILSON,24/10/2023,2023,7,JCARTRIDGE,24/10/2023 11:51,N,N
************9143,38,Julie Cartridge,U,Julie Cartridge,14669,B,14669,04/10/2023,0,,01/01/1900,0,,0,,54.00,,,,,0,,,,LANCASHIRE CC WEBSITE,,,,,,,,,Y,31/10/2023 10:31,CCROOK,7351,287,N,,,,Y,03/11/2023 13:11,VWILSON,01/01/1900,0,,CCROOK,31/10/2023 10:29,,
************9143,38,Julie Cartridge,U,Julie Cartridge,10507,C,10507,03/10/2023,2023,7,03/10/2023,2023,7,2023,7,57.77,0.00,57.77,C,0%,2023,7,,,The Trainline,Train from Poulton to Manchester Oxford Road for Andrew Robinson and Hannah McMillan for DWP workshop on 24th November 2023,Travel and Accommodation,6702,33000,,,Resources,Resources,Y,31/10/2023 10:31,CCROOK,7352,8054,N,,,,Y,03/11/2023 13:11,VWILSON,03/10/2023,2023,7,JCARTRIDGE,17/10/2023 15:42,N,N
************9143,38,Julie Cartridge,U,Julie Cartridge,14663,B,14663,03/10/2023,0,,01/01/1900,0,,0,,57.77,,,,,0,,,,TRAINLINE,,,,,,,,,Y,31/10/2023 10:31,CCROOK,7352,287,N,,,,Y,03/11/2023 13:11,VWILSON,01/01/1900,0,,CCROOK,31/10/2023 10:29,,
************9143,38,Julie Cartridge,U,Julie Cartridge,10520,C,10520,03/10/2023,2023,7,24/10/2023,2023,7,2023,7,112.39,0.00,112.39,C,0%,2023,7,,,The Trainline,Train Tickets for Lynne Crompton for LLCI Members meeting on 11-10-23 from Poulton to Birmingham New Street,Travel and Accommodation,6400,33000,,,Resources,Resources,Y,31/10/2023 10:31,CCROOK,7353,8092,N,,,,Y,03/11/2023 13:11,VWILSON,24/10/2023,2023,7,JCARTRIDGE,24/10/2023 11:57,N,N
************9143,38,Julie Cartridge,U,Julie Cartridge,14664,B,14664,03/10/2023,0,,01/01/1900,0,,0,,112.39,,,,,0,,,,TRAINLINE,,,,,,,,,Y,31/10/2023 10:31,CCROOK,7353,287,N,,,,Y,03/11/2023 13:11,VWILSON,01/01/1900,0,,CCROOK,31/10/2023 10:29,,
************9143,38,Julie Cartridge,U,Julie Cartridge,10521,C,10521,02/10/2023,2023,7,24/10/2023,2023,7,2023,7,337.00,0.00,337.00,E,0%,2023,7,,,Solicitors Regulation Authority,Fee for Practising Certificate for Carmel White,Other,6400,14001,,,Resources,Resources,Y,31/10/2023 10:31,CCROOK,7345,8094,N,,,,Y,03/11/2023 13:11,VWILSON,24/10/2023,2023,7,JCARTRIDGE,24/10/2023 12:54,N,N
************9143,38,Julie Cartridge,U,Julie Cartridge,14661,B,14661,02/10/2023,0,,01/01/1900,0,,0,,337.00,,,,,0,,,,SRA,,,,,,,,,Y,31/10/2023 10:31,CCROOK,7345,287,N,,,,Y,03/11/2023 13:11,VWILSON,01/01/1900,0,,CCROOK,31/10/2023 10:29,,
************8657,39,Mrs C Crook,U,Carly Crook,10615,C,10615,15/12/2023,2023,9,15/12/2023,2023,9,2023,9,3.25,0.54,2.71,B,20%,2023,9,Y,813053468,Aldi,Aldi - Wyre Christmas Party Purchases,Other,6503,46842,,,Resources,Resources,Y,02/01/2024 13:06,JCARTRIDGE,7440,8169,N,,,,Y,02/01/2024 13:47,VWILSON,15/12/2023,2023,9,HGRUNDY,15/12/2023 16:24,N,N
************8657,39,Mrs C Crook,U,Carly Crook,10614,C,10614,15/12/2023,2023,9,15/12/2023,2023,9,2023,9,9.01,1.50,7.51,B,20%,2023,9,Y,320093700,HOME BARGAINS,Home Bargains - Wyre Christmas Purchases,Other,6503,46842,,,Resources,Resources,Y,02/01/2024 12:59,JCARTRIDGE,7431,8169,N,,,,Y,02/01/2024 13:47,VWILSON,15/12/2023,2023,9,HGRUNDY,15/12/2023 16:19,N,N
************8657,39,Mrs C Crook,U,Carly Crook,14798,B,14798,15/12/2023,0,,01/01/1900,0,,0,,9.01,,,,,0,,,,HOME BARGAINS,,,,,,,,,Y,02/01/2024 12:59,JCARTRIDGE,7431,289,N,,,,Y,02/01/2024 13:47,VWILSON,01/01/1900,0,,MBLACK,02/01/2024 12:57,,
************8657,39,Mrs C Crook,U,Carly Crook,10616,C,10616,15/12/2023,2023,9,15/12/2023,2023,9,2023,9,44.28,0.00,44.28,C,0%,2023,9,,,Aldi,Aldi - Wyre Christmas Party Purchases,Other,6503,46842,,,Resources,Resources,Y,02/01/2024 13:06,JCARTRIDGE,7440,8169,N,,,,Y,02/01/2024 13:47,VWILSON,15/12/2023,2023,9,HGRUNDY,15/12/2023 16:25,N,N
************8657,39,Mrs C Crook,U,Carly Crook,14799,B,14799,15/12/2023,0,,01/01/1900,0,,0,,47.53,,,,,0,,,,ALDI 104 773,,,,,,,,,Y,02/01/2024 13:06,JCARTRIDGE,7440,289,N,,,,Y,02/01/2024 13:47,VWILSON,01/01/1900,0,,MBLACK,02/01/2024 12:57,,
************8657,39,Mrs C Crook,U,Carly Crook,10655,C,10655,30/11/2023,2023,8,04/01/2024,2023,10,2023,10,10.89,0.00,10.89,E,0%,2023,10,,,TRAINLINE,Train tickets for Jo Billington,Travel and Accommodation,6403,33000,,,Resources,Resources,Y,04/01/2024 09:24,CCROOK,7448,8199,N,,,,Y,04/01/2024 09:30,VWILSON,04/01/2024,2023,10,CCROOK,04/01/2024 09:23,N,N
************8657,39,Mrs C Crook,U,Carly Crook,14771,B,14771,30/11/2023,0,,01/01/1900,0,,0,,10.89,,,,,0,,,,TRAINLINE,,,,,,,,,Y,04/01/2024 09:24,CCROOK,7448,289,N,,,,Y,04/01/2024 09:30,VWILSON,01/01/1900,0,,MBLACK,02/01/2024 12:57,,
************8657,39,Mrs C Crook,U,Carly Crook,10612,C,10612,17/11/2023,2023,8,13/12/2023,2023,9,2023,9,"1,240.00",206.67,"1,033.33",B,20%,2023,9,Y,976401993,First intuition,AAT Q2022 Level 4 in Professional Accounting - Carly Crook,Other,6402,17012,,,Resources,Resources,Y,13/12/2023 11:17,CCROOK,7407,8168,N,,,,Y,21/12/2023 09:43,VWILSON,13/12/2023,2023,9,CCROOK,13/12/2023 11:14,N,N
************8657,39,Mrs C Crook,U,Carly Crook,14708,B,14708,17/11/2023,0,,01/01/1900,0,,0,,"1,240.00",,,,,0,,,,FIRST INTUITION CAMBRI,,,,,,,,,Y,13/12/2023 11:17,CCROOK,7407,288,N,,,,Y,21/12/2023 09:43,VWILSON,01/01/1900,0,,CCROOK,29/11/2023 12:33,,
************8657,39,Mrs C Crook,U,Carly Crook,10613,C,10613,10/11/2023,2023,8,13/12/2023,2023,9,2023,9,124.00,20.67,103.33,B,20%,2023,9,,,www.dunelm.co.uk,Lamp shades for the Mayor`s parlour,Other,6412,21002,,,Resources,Resources,Y,13/12/2023 11:17,CCROOK,7407,8168,N,,,,Y,21/12/2023 09:43,VWILSON,13/12/2023,2023,9,CCROOK,13/12/2023 11:17,N,N
************8657,39,Mrs C Crook,U,Carly Crook,14695,B,14695,10/11/2023,0,,01/01/1900,0,,0,,124.00,,,,,0,,,,DUNELM SOFTFURNISHINGS,,,,,,,,,Y,13/12/2023 11:17,CCROOK,7407,288,N,,,,Y,21/12/2023 09:43,VWILSON,01/01/1900,0,,CCROOK,29/11/2023 12:33,,
************8657,39,Mrs C Crook,U,Carly Crook,14653,B,14653,25/10/2023,0,,01/01/1900,0,,0,,-20.50,,,,,0,,,,NORTHERN TRAIN,,,,,,,,,Y,24/11/2023 12:28,CCROOK,7378,287,N,,,,Y,24/11/2023 14:03,VWILSON,01/01/1900,0,,CCROOK,31/10/2023 10:29,,
************8657,39,Mrs C Crook,U,Carly Crook,10573,C,10573,20/10/2023,2023,7,24/11/2023,2023,8,2023,8,-20.50,0.00,-20.50,E,0%,2023,8,,,northern rail,refund for delayed train,Travel and Accommodation,3341,17010,,,Resources,Resources,Y,24/11/2023 12:28,CCROOK,7378,8142,N,,,,Y,24/11/2023 14:03,VWILSON,24/11/2023,2023,8,CCROOK,24/11/2023 12:27,N,N
************8657,39,Mrs C Crook,U,Carly Crook,10510,C,10510,20/10/2023,2023,7,20/10/2023,2023,7,2023,7,71.75,11.96,59.79,B,20%,2023,7,,,www.therange.co.uk,20 photo frame in A4 for Colm Healy,Other,6106,42200,,,Resources,Resources,Y,31/10/2023 10:31,CCROOK,7357,8082,N,,,,Y,03/11/2023 13:11,VWILSON,20/10/2023,2023,7,CCROOK,20/10/2023 12:45,N,N
************8657,39,Mrs C Crook,U,Carly Crook,14641,B,14641,20/10/2023,0,,01/01/1900,0,,0,,71.75,,,,,0,,,,WWW.THERANGE.CO.UK,,,,,,,,,Y,31/10/2023 10:31,CCROOK,7357,287,N,,,,Y,03/11/2023 13:11,VWILSON,01/01/1900,0,,CCROOK,31/10/2023 10:29,,
************8657,39,Mrs C Crook,U,Carly Crook,10509,C,10509,20/10/2023,2023,7,20/10/2023,2023,7,2023,7,269.98,45.00,224.98,B,20%,2023,7,,,www.sharkclean.co.uk,2 x Shark Classic Upright Vacuum NV602UK for Julian Brent,Other,3720,40100,,,Resources,Resources,Y,31/10/2023 10:31,CCROOK,7356,8082,N,,,,Y,03/11/2023 13:11,VWILSON,20/10/2023,2023,7,CCROOK,20/10/2023 12:42,N,N
************8657,39,Mrs C Crook,U,Carly Crook,14640,B,14640,20/10/2023,0,,01/01/1900,0,,0,,269.98,,,,,0,,,,SHARKNINJA EUROPE,,,,,,,,,Y,31/10/2023 10:31,CCROOK,7356,287,N,,,,Y,03/11/2023 13:11,VWILSON,01/01/1900,0,,CCROOK,31/10/2023 10:29,,
************8657,39,Mrs C Crook,U,Carly Crook,10490,C,10490,09/10/2023,2023,7,17/10/2023,2023,7,2023,7,100.00,0.00,100.00,E,0%,2023,7,,,UCLAN.ac.uk,AAT Exam - Carly Crook,Other,6402,17012,,,Resources,Resources,Y,31/10/2023 10:31,CCROOK,7355,8073,N,,,,Y,03/11/2023 13:09,VWILSON,17/10/2023,2023,7,CCROOK,17/10/2023 11:02,N,N
************8657,39,Mrs C Crook,U,Carly Crook,14674,B,14674,09/10/2023,0,,01/01/1900,0,,0,,100.00,,,,,0,,,,WWW.UCLAN.AU.UK,,,,,,,,,Y,31/10/2023 10:31,CCROOK,7355,287,N,,,,Y,03/11/2023 13:09,VWILSON,01/01/1900,0,,CCROOK,31/10/2023 10:29,,
************8657,39,Mrs C Crook,U,Carly Crook,10491,C,10491,09/10/2023,2023,7,17/10/2023,2023,7,2023,7,468.00,78.00,390.00,B,20%,2023,7,Y,383030966,BIP SOLUTIONS,PR Roadshow for Lee Rossall and Mary Grimshaw,Other,6400,17010,,,Resources,Resources,Y,31/10/2023 10:31,CCROOK,7354,8073,N,,,,Y,03/11/2023 13:11,VWILSON,17/10/2023,2023,7,CCROOK,17/10/2023 11:04,N,N
************8657,39,Mrs C Crook,U,Carly Crook,14673,B,14673,09/10/2023,0,,01/01/1900,0,,0,,468.00,,,,,0,,,,BIP SOLUTIONS,,,,,,,,,Y,31/10/2023 10:31,CCROOK,7354,287,N,,,,Y,03/11/2023 13:11,VWILSON,01/01/1900,0,,CCROOK,31/10/2023 10:29,,
************9358,40,Mrs Janet E Heald,U,Janet Heald,10658,C,10658,15/12/2023,2023,9,04/01/2024,2023,10,2023,10,1.00,0.00,1.00,E,0%,2023,10,,,Morrisons,various,Other,3040,41000,,,People and Places,People and Places,Y,04/01/2024 14:41,JHEALD,7449,8200,N,,,,P,04/01/2024 14:41,JAROBINSON,,0,0,JHEALD,04/01/2024 14:32,N,N
************9358,40,Mrs Janet E Heald,U,Janet Heald,14802,B,14802,15/12/2023,0,,01/01/1900,0,,0,,1.00,,,,,0,,,,WM MORRISONS STORE,,,,,,,,,Y,04/01/2024 14:41,JHEALD,7449,289,N,,,,P,04/01/2024 14:41,JAROBINSON,01/01/1900,0,,MBLACK,02/01/2024 12:57,,
************9358,40,Mrs Janet E Heald,U,Janet Heald,10656,C,10656,15/12/2023,2023,9,04/01/2024,2023,10,2023,10,30.45,0.00,30.45,E,0%,2023,10,,,Morrisons,mince pies TLT L and L,Other,3040,41000,,,People and Places,People and Places,Y,04/01/2024 14:41,JHEALD,7449,8200,N,,,,P,04/01/2024 14:41,JAROBINSON,,0,0,JHEALD,04/01/2024 14:30,N,N
************9358,40,Mrs Janet E Heald,U,Janet Heald,14801,B,14801,15/12/2023,0,,01/01/1900,0,,0,,30.45,,,,,0,,,,WM MORRISONS STORE,,,,,,,,,Y,04/01/2024 14:41,JHEALD,7449,289,N,,,,P,04/01/2024 14:41,JAROBINSON,01/01/1900,0,,MBLACK,02/01/2024 12:57,,
************9358,40,Mrs Janet E Heald,U,Janet Heald,10657,C,10657,14/12/2023,2023,9,04/01/2024,2023,10,2023,10,24.29,0.00,24.29,E,0%,2023,10,,,Aldi,various bar,Other,3040,41000,,,People and Places,People and Places,Y,04/01/2024 14:41,JHEALD,7449,8200,N,,,,P,04/01/2024 14:41,JAROBINSON,,0,0,JHEALD,04/01/2024 14:31,N,N
************9358,40,Mrs Janet E Heald,U,Janet Heald,14800,B,14800,14/12/2023,0,,01/01/1900,0,,0,,24.29,,,,,0,,,,ALDI 59 773,,,,,,,,,Y,04/01/2024 14:41,JHEALD,7449,289,N,,,,P,04/01/2024 14:41,JAROBINSON,01/01/1900,0,,MBLACK,02/01/2024 12:57,,
************9358,40,Mrs Janet E Heald,U,Janet Heald,10676,C,10676,08/12/2023,2023,9,04/01/2024,2023,10,2023,10,3.87,0.00,3.87,E,0%,2023,10,,,HOME BARGAINS,various,Other,3115,46522,,,People and Places,People and Places,Y,04/01/2024 15:31,JHEALD,7450,8201,N,,,,P,04/01/2024 15:31,JAROBINSON,,0,0,JHEALD,04/01/2024 15:30,N,N
************9358,40,Mrs Janet E Heald,U,Janet Heald,10675,C,10675,08/12/2023,2023,9,04/01/2024,2023,10,2023,10,104.94,0.00,104.94,E,0%,2023,10,,,HOME BARGAINS,various,Legal Fees,3115,46522,,,People and Places,People and Places,Y,04/01/2024 15:31,JHEALD,7450,8201,N,,,,P,04/01/2024 15:31,JAROBINSON,,0,0,JHEALD,04/01/2024 15:28,N,N
************9358,40,Mrs Janet E Heald,U,Janet Heald,14785,B,14785,08/12/2023,0,,01/01/1900,0,,0,,104.94,,,,,0,,,,HOME BARGAINS FLEETWOO,,,,,,,,,Y,04/01/2024 15:31,JHEALD,7450,289,N,,,,P,04/01/2024 15:31,JAROBINSON,01/01/1900,0,,MBLACK,02/01/2024 12:57,,
************9358,40,Mrs Janet E Heald,U,Janet Heald,10668,C,10668,07/12/2023,2023,9,04/01/2024,2023,10,2023,10,15.84,0.00,15.84,E,0%,2023,10,,,HOME BARGAINS,various,Other,3115,46522,,,People and Places,People and Places,Y,04/01/2024 15:31,JHEALD,7450,8201,N,,,,P,04/01/2024 15:31,JAROBINSON,,0,0,JHEALD,04/01/2024 15:18,N,N
************9358,40,Mrs Janet E Heald,U,Janet Heald,14782,B,14782,07/12/2023,0,,01/01/1900,0,,0,,15.84,,,,,0,,,,HOME BARGAINS,,,,,,,,,Y,04/01/2024 15:31,JHEALD,7450,289,N,,,,P,04/01/2024 15:31,JAROBINSON,01/01/1900,0,,MBLACK,02/01/2024 12:57,,
************9358,40,Mrs Janet E Heald,U,Janet Heald,10667,C,10667,06/12/2023,2023,9,04/01/2024,2023,10,2023,10,15.00,0.00,15.00,E,0%,2023,10,,,asda,various,Other,3115,46522,,,People and Places,People and Places,Y,04/01/2024 15:31,JHEALD,7450,8201,N,,,,P,04/01/2024 15:31,JAROBINSON,,0,0,JHEALD,04/01/2024 15:17,N,N
************9358,40,Mrs Janet E Heald,U,Janet Heald,14781,B,14781,06/12/2023,0,,01/01/1900,0,,0,,15.00,,,,,0,,,,ASDA STOES LTD 5759,,,,,,,,,Y,04/01/2024 15:31,JHEALD,7450,289,N,,,,P,04/01/2024 15:31,JAROBINSON,01/01/1900,0,,MBLACK,02/01/2024 12:57,,
************9358,40,Mrs Janet E Heald,U,Janet Heald,10671,C,10671,06/12/2023,2023,9,04/01/2024,2023,10,2023,10,77.05,0.00,77.05,E,0%,2023,10,,,gee tees,various,Other,3115,46522,,,People and Places,People and Places,Y,04/01/2024 15:31,JHEALD,7450,8201,N,,,,P,04/01/2024 15:31,JAROBINSON,,0,0,JHEALD,04/01/2024 15:23,N,N
************9358,40,Mrs Janet E Heald,U,Janet Heald,14780,B,14780,06/12/2023,0,,01/01/1900,0,,0,,77.05,,,,,0,,,,GEE TEES FLEETWOOD,,,,,,,,,Y,04/01/2024 15:31,JHEALD,7450,289,N,,,,P,04/01/2024 15:31,JAROBINSON,01/01/1900,0,,MBLACK,02/01/2024 12:57,,
************9358,40,Mrs Janet E Heald,U,Janet Heald,14740,B,14740,26/11/2023,0,,01/01/1900,0,,0,,-6.00,,,,,0,,,,SQ BLONDIE BAKES,,,,,,,,,Y,20/12/2023 12:23,CCROOK,7413,288,N,,,,P,20/12/2023 12:24,JAROBINSON,01/01/1900,0,,CCROOK,29/11/2023 12:33,,
************9358,40,Mrs Janet E Heald,U,Janet Heald,14736,B,14736,26/11/2023,0,,01/01/1900,0,,0,,6.00,,,,,0,,,,SQ BLONDIE BAKES,,,,,,,,,Y,20/12/2023 12:23,CCROOK,7413,288,N,,,,P,20/12/2023 12:24,JAROBINSON,01/01/1900,0,,CCROOK,29/11/2023 12:33,,
************9358,40,Mrs Janet E Heald,U,Janet Heald,10659,C,10659,26/11/2023,2023,8,04/01/2024,2023,10,2023,10,24.40,0.00,24.40,D,0%,2023,10,,,asda,various,Other,3040,41000,,,People and Places,People and Places,Y,04/01/2024 14:41,JHEALD,7449,8200,N,,,,P,04/01/2024 14:41,JAROBINSON,,0,0,JHEALD,04/01/2024 14:33,N,N
************9358,40,Mrs Janet E Heald,U,Janet Heald,14735,B,14735,26/11/2023,0,,01/01/1900,0,,0,,24.40,,,,,0,,,,ASDA STOES LTD 5759,,,,,,,,,Y,04/01/2024 14:41,JHEALD,7449,288,N,,,,P,04/01/2024 14:41,JAROBINSON,01/01/1900,0,,CCROOK,29/11/2023 12:33,,
************9358,40,Mrs Janet E Heald,U,Janet Heald,10670,C,10670,23/11/2023,2023,8,04/01/2024,2023,10,2023,10,2.97,0.00,2.97,E,0%,2023,10,,,aldi,various,Other,3115,46522,,,People and Places,People and Places,Y,04/01/2024 15:31,JHEALD,7450,8201,N,,,,P,04/01/2024 15:31,JAROBINSON,,0,0,JHEALD,04/01/2024 15:22,N,N
************9358,40,Mrs Janet E Heald,U,Janet Heald,10669,C,10669,23/11/2023,2023,8,04/01/2024,2023,10,2023,10,11.00,0.00,11.00,E,0%,2023,10,,,asda,various,Other,3115,46522,,,People and Places,People and Places,Y,04/01/2024 15:31,JHEALD,7450,8201,N,,,,P,04/01/2024 15:31,JAROBINSON,,0,0,JHEALD,04/01/2024 15:19,N,N
************9358,40,Mrs Janet E Heald,U,Janet Heald,14733,B,14733,23/11/2023,0,,01/01/1900,0,,0,,11.00,,,,,0,,,,ASDA STOES LTD 5759,,,,,,,,,Y,04/01/2024 15:31,JHEALD,7450,288,N,,,,P,04/01/2024 15:31,JAROBINSON,01/01/1900,0,,CCROOK,29/11/2023 12:33,,
************9358,40,Mrs Janet E Heald,U,Janet Heald,10660,C,10660,22/11/2023,2023,8,04/01/2024,2023,10,2023,10,18.00,0.00,18.00,E,0%,2023,10,,,asda,various,Other,3040,41000,,,People and Places,People and Places,Y,04/01/2024 14:41,JHEALD,7449,8200,N,,,,P,04/01/2024 14:41,JAROBINSON,,0,0,JHEALD,04/01/2024 14:34,N,N
************9358,40,Mrs Janet E Heald,U,Janet Heald,14726,B,14726,22/11/2023,0,,01/01/1900,0,,0,,18.00,,,,,0,,,,ASDA STOES LTD 5759,,,,,,,,,Y,04/01/2024 14:41,JHEALD,7449,288,N,,,,P,04/01/2024 14:41,JAROBINSON,01/01/1900,0,,CCROOK,29/11/2023 12:33,,
************9358,40,Mrs Janet E Heald,U,Janet Heald,14715,B,14715,20/11/2023,0,,01/01/1900,0,,0,,3.87,,,,,0,,,,HOME BARGAINS,,,,,,,,,Y,04/01/2024 15:31,JHEALD,7450,288,N,,,,P,04/01/2024 15:31,JAROBINSON,01/01/1900,0,,CCROOK,29/11/2023 12:33,,
************9358,40,Mrs Janet E Heald,U,Janet Heald,10661,C,10661,18/11/2023,2023,8,04/01/2024,2023,10,2023,10,7.74,0.00,7.74,E,0%,2023,10,,,aldi,various,Other,3040,41000,,,People and Places,People and Places,Y,04/01/2024 14:41,JHEALD,7449,8200,N,,,,P,04/01/2024 14:41,JAROBINSON,,0,0,JHEALD,04/01/2024 14:35,N,N
************9358,40,Mrs Janet E Heald,U,Janet Heald,14712,B,14712,18/11/2023,0,,01/01/1900,0,,0,,7.74,,,,,0,,,,ALDI 59 773,,,,,,,,,Y,04/01/2024 14:41,JHEALD,7449,288,N,,,,P,04/01/2024 14:41,JAROBINSON,01/01/1900,0,,CCROOK,29/11/2023 12:33,,
************9358,40,Mrs Janet E Heald,U,Janet Heald,14711,B,14711,17/11/2023,0,,01/01/1900,0,,0,,2.97,,,,,0,,,,ALDI 59 773,,,,,,,,,Y,04/01/2024 15:31,JHEALD,7450,288,N,,,,P,04/01/2024 15:31,JAROBINSON,01/01/1900,0,,CCROOK,29/11/2023 12:33,,
************9358,40,Mrs Janet E Heald,U,Janet Heald,10662,C,10662,17/11/2023,2023,8,04/01/2024,2023,10,2023,10,20.90,0.00,20.90,D,0%,2023,10,,,asda,various,Other,3040,41000,,,People and Places,People and Places,Y,04/01/2024 14:41,JHEALD,7449,8200,N,,,,P,04/01/2024 14:41,JAROBINSON,,0,0,JHEALD,04/01/2024 14:35,N,N
************9358,40,Mrs Janet E Heald,U,Janet Heald,14710,B,14710,17/11/2023,0,,01/01/1900,0,,0,,20.90,,,,,0,,,,ASDA STOES LTD 5759,,,,,,,,,Y,04/01/2024 14:41,JHEALD,7449,288,N,,,,P,04/01/2024 14:41,JAROBINSON,01/01/1900,0,,CCROOK,29/11/2023 12:33,,
************9358,40,Mrs Janet E Heald,U,Janet Heald,10673,C,10673,16/11/2023,2023,8,04/01/2024,2023,10,2023,10,9.95,0.00,9.95,E,0%,2023,10,,,gee tees,various,Other,3115,46522,,,People and Places,People and Places,Y,04/01/2024 15:31,JHEALD,7450,8201,N,,,,P,04/01/2024 15:31,JAROBINSON,,0,0,JHEALD,04/01/2024 15:26,N,N
************9358,40,Mrs Janet E Heald,U,Janet Heald,14706,B,14706,16/11/2023,0,,01/01/1900,0,,0,,9.95,,,,,0,,,,GEE TEES FLEETWOOD,,,,,,,,,Y,04/01/2024 15:31,JHEALD,7450,288,N,,,,P,04/01/2024 15:31,JAROBINSON,01/01/1900,0,,CCROOK,29/11/2023 12:33,,
************9358,40,Mrs Janet E Heald,U,Janet Heald,10674,C,10674,16/11/2023,2023,8,04/01/2024,2023,10,2023,10,52.47,0.00,52.47,E,0%,2023,10,,,aldi,various,Other,3115,46522,,,People and Places,People and Places,Y,04/01/2024 15:31,JHEALD,7450,8201,N,,,,P,04/01/2024 15:31,JAROBINSON,,0,0,JHEALD,04/01/2024 15:27,N,N
************9358,40,Mrs Janet E Heald,U,Janet Heald,14709,B,14709,16/11/2023,0,,01/01/1900,0,,0,,52.47,,,,,0,,,,ALDI 59 773,,,,,,,,,Y,04/01/2024 15:31,JHEALD,7450,288,N,,,,P,04/01/2024 15:31,JAROBINSON,01/01/1900,0,,CCROOK,29/11/2023 12:33,,
************9358,40,Mrs Janet E Heald,U,Janet Heald,10672,C,10672,16/11/2023,2023,8,04/01/2024,2023,10,2023,10,89.45,0.00,89.45,E,0%,2023,10,,,gee tees,various,Other,3115,46522,,,People and Places,People and Places,Y,04/01/2024 15:31,JHEALD,7450,8201,N,,,,P,04/01/2024 15:31,JAROBINSON,,0,0,JHEALD,04/01/2024 15:24,N,N
************9358,40,Mrs Janet E Heald,U,Janet Heald,14707,B,14707,16/11/2023,0,,01/01/1900,0,,0,,89.45,,,,,0,,,,GEE TEES FLEETWOOD,,,,,,,,,Y,04/01/2024 15:31,JHEALD,7450,288,N,,,,P,04/01/2024 15:31,JAROBINSON,01/01/1900,0,,CCROOK,29/11/2023 12:33,,
************9358,40,Mrs Janet E Heald,U,Janet Heald,10664,C,10664,07/11/2023,2023,8,04/01/2024,2023,10,2023,10,18.45,0.00,18.45,D,0%,2023,10,,,asda,various,Other,3040,41000,,,People and Places,People and Places,Y,04/01/2024 14:41,JHEALD,7449,8200,N,,,,P,04/01/2024 14:41,JAROBINSON,,0,0,JHEALD,04/01/2024 14:37,N,N
************9358,40,Mrs Janet E Heald,U,Janet Heald,14761,B,14761,07/11/2023,0,,01/01/1900,0,,0,,18.45,,,,,0,,,,ASDA STOES LTD 5759,,,,,,,,,Y,04/01/2024 14:41,JHEALD,7449,288,N,,,,P,04/01/2024 14:41,JAROBINSON,01/01/1900,0,,CCROOK,29/11/2023 12:33,,
************9358,40,Mrs Janet E Heald,U,Janet Heald,14759,B,14759,04/11/2023,0,,01/01/1900,0,,0,,9.00,,,,,0,,,,ASDA STOES LTD 5759,,,,,,,,,Y,04/01/2024 15:31,JHEALD,7450,288,N,,,,P,04/01/2024 15:31,JAROBINSON,01/01/1900,0,,CCROOK,29/11/2023 12:33,,
************9358,40,Mrs Janet E Heald,U,Janet Heald,10665,C,10665,02/11/2023,2023,8,04/01/2024,2023,10,2023,10,12.25,0.00,12.25,D,0%,2023,10,,,asda,various,Other,3040,41000,,,People and Places,People and Places,Y,04/01/2024 14:41,JHEALD,7449,8200,N,,,,P,04/01/2024 14:41,JAROBINSON,,0,0,JHEALD,04/01/2024 14:37,N,N
************9358,40,Mrs Janet E Heald,U,Janet Heald,14756,B,14756,02/11/2023,0,,01/01/1900,0,,0,,12.25,,,,,0,,,,ASDA STOES LTD 5759,,,,,,,,,Y,04/01/2024 14:41,JHEALD,7449,288,N,,,,P,04/01/2024 14:41,JAROBINSON,01/01/1900,0,,CCROOK,29/11/2023 12:33,,
************9358,40,Mrs Janet E Heald,U,Janet Heald,10666,C,10666,30/10/2023,2023,7,04/01/2024,2023,10,2023,10,50.83,0.00,50.83,E,0%,2023,10,,,Blackpool Council,refuse collection,Other,3040,27008,,,People and Places,People and Places,Y,04/01/2024 14:41,JHEALD,7449,8200,N,,,,P,04/01/2024 14:41,JAROBINSON,,0,0,JHEALD,04/01/2024 14:38,N,N
************9358,40,Mrs Janet E Heald,U,Janet Heald,14690,B,14690,30/10/2023,0,,01/01/1900,0,,0,,50.83,,,,,0,,,,BLACKPOOL.GOV.UK,,,,,,,,,Y,04/01/2024 14:41,JHEALD,7449,288,N,,,,P,04/01/2024 14:41,JAROBINSON,01/01/1900,0,,CCROOK,29/11/2023 12:33,,
************9358,40,Mrs Janet E Heald,U,Janet Heald,10535,C,10535,26/10/2023,2023,7,31/10/2023,2023,7,2023,7,14.12,0.00,14.12,E,0%,2023,7,,,Blackpool Council,bin collection,Other,3040,27008,,,People and Places,People and Places,Y,31/10/2023 14:48,JHEALD,7365,8107,N,,,,P,31/10/2023 14:48,JAROBINSON,,0,0,JHEALD,31/10/2023 14:47,N,N
************9358,40,Mrs Janet E Heald,U,Janet Heald,14654,B,14654,26/10/2023,0,,01/01/1900,0,,0,,14.12,,,,,0,,,,BLACKPOOL.GOV.UK,,,,,,,,,Y,31/10/2023 14:48,JHEALD,7365,287,N,,,,P,31/10/2023 14:48,JAROBINSON,01/01/1900,0,,CCROOK,31/10/2023 10:29,,
************9358,40,Mrs Janet E Heald,U,Janet Heald,10534,C,10534,25/10/2023,2023,7,31/10/2023,2023,7,2023,7,110.00,0.00,110.00,E,0%,2023,7,,,The prop Factory,props for business awards,Other,3040,46842,,,People and Places,People and Places,Y,31/10/2023 14:48,JHEALD,7365,8107,N,,,,P,31/10/2023 14:48,JAROBINSON,,0,0,JHEALD,31/10/2023 14:46,N,N
************9358,40,Mrs Janet E Heald,U,Janet Heald,14647,B,14647,24/10/2023,0,,01/01/1900,0,,0,,110.00,,,,,0,,,,SP THEPROPFACTORY,,,,,,,,,Y,31/10/2023 14:48,JHEALD,7365,287,N,,,,P,31/10/2023 14:48,JAROBINSON,01/01/1900,0,,CCROOK,31/10/2023 10:29,,
************9358,40,Mrs Janet E Heald,U,Janet Heald,10500,C,10500,22/10/2023,2023,7,17/10/2023,2023,7,2023,7,19.55,0.00,19.55,E,0%,2023,7,,,asda,flowers three degrees 22/9/23,Other,3040,40100,,,People and Places,People and Places,Y,17/10/2023 14:34,JHEALD,7330,8078,N,,,,Y,17/10/2023 15:32,JAROBINSON,17/10/2023,2023,7,JHEALD,17/10/2023 14:32,N,N
************9358,40,Mrs Janet E Heald,U,Janet Heald,10504,C,10504,06/10/2023,2023,7,17/10/2023,2023,7,2023,7,3.50,0.00,3.50,D,0%,2023,7,,,asda,fruit pink floydian 7/10/23,Other,3040,41000,,,People and Places,People and Places,Y,31/10/2023 14:48,JHEALD,7365,8079,N,,,,P,31/10/2023 14:48,JAROBINSON,,0,0,JHEALD,17/10/2023 14:55,N,N
************9358,40,Mrs Janet E Heald,U,Janet Heald,14671,B,14671,06/10/2023,0,,01/01/1900,0,,0,,3.50,,,,,0,,,,ASDA STOES LTD 5759,,,,,,,,,Y,31/10/2023 14:48,JHEALD,7365,287,N,,,,P,31/10/2023 14:48,JAROBINSON,01/01/1900,0,,CCROOK,31/10/2023 10:29,,
************9358,40,Mrs Janet E Heald,U,Janet Heald,10503,C,10503,06/10/2023,2023,7,17/10/2023,2023,7,2023,7,25.40,0.00,25.40,D,0%,2023,7,,,asda,flowers and fruit MP wedding 6/10/23 and pink floydian 7/10/23,Other,3040,40100,,,People and Places,People and Places,Y,31/10/2023 14:48,JHEALD,7365,8079,N,,,,P,31/10/2023 14:48,JAROBINSON,,0,0,JHEALD,17/10/2023 14:55,N,N
************9358,40,Mrs Janet E Heald,U,Janet Heald,14672,B,14672,06/10/2023,0,,01/01/1900,0,,0,,25.40,,,,,0,,,,ASDA STOES LTD 5759,,,,,,,,,Y,31/10/2023 14:48,JHEALD,7365,287,N,,,,P,31/10/2023 14:48,JAROBINSON,01/01/1900,0,,CCROOK,31/10/2023 10:29,,
************9358,40,Mrs Janet E Heald,U,Janet Heald,10663,C,10663,04/10/2023,2023,7,04/01/2024,2023,10,2023,10,9.00,0.00,9.00,E,0%,2023,10,,,asda,various,Other,3040,41000,,,People and Places,People and Places,Y,04/01/2024 15:31,JHEALD,7450,8200,N,,,,P,04/01/2024 15:31,JAROBINSON,,0,0,JHEALD,04/01/2024 14:36,N,N
************9358,40,Mrs Janet E Heald,U,Janet Heald,10505,C,10505,03/10/2023,2023,7,17/10/2023,2023,7,2023,7,142.92,23.82,119.10,B,20%,2023,7,,,cartridge save,ink cartridge for Adrian Fleetwood market,Other,3723,40100,,,People and Places,People and Places,Y,31/10/2023 14:48,JHEALD,7365,8079,N,,,,P,31/10/2023 14:48,JAROBINSON,,0,0,JHEALD,17/10/2023 14:58,N,N
************9358,40,Mrs Janet E Heald,U,Janet Heald,14665,B,14665,03/10/2023,0,,01/01/1900,0,,0,,142.92,,,,,0,,,,CARTRIDGE SAVE,,,,,,,,,Y,31/10/2023 14:48,JHEALD,7365,287,N,,,,P,31/10/2023 14:48,JAROBINSON,01/01/1900,0,,CCROOK,31/10/2023 10:29,,
************1764,42,Jordan Cartmell,U,Jordan Cartmell,14807,B,14807,20/12/2023,0,,01/01/1900,0,,0,,7.73,,,,,0,,,,NAME-CHEAP.COM IGIDCU,,,,,,,,,N,,,0,289,N,,,,N,,,01/01/1900,0,,MBLACK,02/01/2024 12:57,,
************1764,42,Jordan Cartmell,U,Jordan Cartmell,14803,B,14803,18/12/2023,0,,01/01/1900,0,,0,,20.73,,,,,0,,,,NAME-CHEAP.COM CBA2Y6,,,,,,,,,N,,,0,289,N,,,,N,,,01/01/1900,0,,MBLACK,02/01/2024 12:57,,
************1764,42,Jordan Cartmell,U,Jordan Cartmell,14796,B,14796,14/12/2023,0,,01/01/1900,0,,0,,9.39,,,,,0,,,,GOOGLE CLOUD G65ZCD,,,,,,,,,N,,,0,289,N,,,,N,,,01/01/1900,0,,MBLACK,02/01/2024 12:57,,
************1764,42,Jordan Cartmell,U,Jordan Cartmell,14734,B,14734,23/11/2023,0,,01/01/1900,0,,0,,5.75,,,,,0,,,,NAME-CHEAP.COM TOHSUW,,,,,,,,,N,,,0,288,N,,,,N,,,01/01/1900,0,,CCROOK,29/11/2023 12:33,,
************1764,42,Jordan Cartmell,U,Jordan Cartmell,14755,B,14755,01/11/2023,0,,01/01/1900,0,,0,,9.31,,,,,0,,,,CLOUD 56ZXMV,,,,,,,,,N,,,0,288,N,,,,N,,,01/01/1900,0,,CCROOK,29/11/2023 12:33,,
************1764,42,Jordan Cartmell,U,Jordan Cartmell,10553,C,10553,17/10/2023,2023,7,03/11/2023,2023,8,2023,8,17.46,2.91,14.55,B,20%,2023,8,,,Broadbandbuyer.com,1 x Yealink BLT60 Busylight for Yealink Phones.,Other,6404,43500,HW015,,Resources,Resources,Y,03/11/2023 13:20,JCARTMELL,7376,8123,N,,,,P,03/11/2023 13:20,LBROPHY,,0,0,JCARTMELL,03/11/2023 13:20,N,N
************1764,42,Jordan Cartmell,U,Jordan Cartmell,10552,C,10552,17/10/2023,2023,7,03/11/2023,2023,8,2023,8,45.01,7.50,37.51,B,20%,2023,8,,,Broadbandbuyer.com,"3 x CAT6a Shielded Black 1m Ethernet Patch Cable, Ten Pack (F/FTP, LSZH, Low Smoke). Plus delivery at 4.",Other,6404,43500,HW007,,Resources,Resources,Y,03/11/2023 13:20,JCARTMELL,7376,8123,N,,,,P,03/11/2023 13:20,LBROPHY,,0,0,JCARTMELL,03/11/2023 13:18,N,N
************1764,42,Jordan Cartmell,U,Jordan Cartmell,14628,B,14628,17/10/2023,0,,01/01/1900,0,,0,,62.47,,,,,0,,,,WWW.BROADBANDBUYER.CO.,,,,,,,,,Y,03/11/2023 13:20,JCARTMELL,7376,287,N,,,,P,03/11/2023 13:20,LBROPHY,01/01/1900,0,,CCROOK,31/10/2023 10:29,,
************1764,42,Jordan Cartmell,U,Jordan Cartmell,10546,C,10546,10/10/2023,2023,7,03/11/2023,2023,8,2023,8,377.39,62.90,314.49,B,20%,2023,8,,,Kenable,50 x CERTIFIED USB4 20 Type C Cable 20Gbps 95W 4K60Hz USB 4.0 E-Mark Metal Ends 2m.,Other,6404,43500,HW007,,Resources,Resources,Y,03/11/2023 12:52,JCARTMELL,7372,8118,N,,,,P,03/11/2023 12:52,LBROPHY,,0,0,JCARTMELL,03/11/2023 12:51,N,N
************1764,42,Jordan Cartmell,U,Jordan Cartmell,14677,B,14677,10/10/2023,0,,01/01/1900,0,,0,,377.39,,,,,0,,,,KENABLE.CO.UK,,,,,,,,,Y,03/11/2023 12:52,JCARTMELL,7372,287,N,,,,P,03/11/2023 12:52,LBROPHY,01/01/1900,0,,CCROOK,31/10/2023 10:29,,
************1764,42,Jordan Cartmell,U,Jordan Cartmell,10543,C,10543,04/10/2023,2023,7,03/11/2023,2023,8,2023,8,8.06,1.34,6.72,B,20%,2023,8,,,Namecheap Inc,wyreweddings.co.uk domain renewal from Namecheap for one year.,Other,6404,43604,43710,,Resources,Resources,Y,03/11/2023 12:38,JCARTMELL,7369,8115,N,,,,P,03/11/2023 12:38,LBROPHY,,0,0,JCARTMELL,03/11/2023 12:38,N,N
************1764,42,Jordan Cartmell,U,Jordan Cartmell,14670,B,14670,04/10/2023,0,,01/01/1900,0,,0,,8.06,,,,,0,,,,NAME-CHEAP.COM X5TRUW,,,,,,,,,Y,03/11/2023 12:38,JCARTMELL,7369,287,N,,,,P,03/11/2023 12:38,LBROPHY,01/01/1900,0,,CCROOK,31/10/2023 10:29,,
************1764,42,Jordan Cartmell,U,Jordan Cartmell,10548,C,10548,01/10/2023,2023,7,03/11/2023,2023,8,2023,8,10.59,1.77,8.82,B,20%,2023,8,,,Google Inc,Google Search API monthly usage charges for September 2023.,Other,6404,43604,43710,,Resources,Resources,Y,03/11/2023 13:02,JCARTMELL,7374,8120,N,,,,P,03/11/2023 13:02,LBROPHY,,0,0,JCARTMELL,03/11/2023 13:02,N,N
************1764,42,Jordan Cartmell,U,Jordan Cartmell,14660,B,14660,01/10/2023,0,,01/01/1900,0,,0,,10.59,,,,,0,,,,CLOUD DCTWZJ,,,,,,,,,Y,03/11/2023 13:02,JCARTMELL,7374,287,N,,,,P,03/11/2023 13:02,LBROPHY,01/01/1900,0,,CCROOK,31/10/2023 10:29,,
************8571,46,Emma Lyons,U,Emma Lyons,10643,C,10643,14/12/2023,2023,9,21/12/2023,2023,9,2023,9,40.00,0.00,40.00,R,0%,2023,9,,,Facebook,Facebook,Other,3040,46100,,,People and Places,People and Places,Y,02/01/2024 12:59,JCARTRIDGE,7432,8188,N,,,,Y,03/01/2024 10:43,MHESKETH,21/12/2023,2023,9,BMCDONOUGH,21/12/2023 12:47,N,N
************8571,46,Emma Lyons,U,Emma Lyons,14795,B,14795,14/12/2023,0,,01/01/1900,0,,0,,40.00,,,,,0,,,,FACEBK AQZVRXFKM2,,,,,,,,,Y,02/01/2024 12:59,JCARTRIDGE,7432,289,N,,,,Y,03/01/2024 10:43,MHESKETH,01/01/1900,0,,MBLACK,02/01/2024 12:57,,
************8571,46,Emma Lyons,U,Emma Lyons,10640,C,10640,02/12/2023,2023,9,21/12/2023,2023,9,2023,9,105.29,0.00,105.29,R,0%,2023,9,,,Mailchimp,Mailchimp,Other,6501,,,,People and Places,People and Places,Y,02/01/2024 12:59,JCARTRIDGE,7433,8185,N,,,,Y,03/01/2024 10:43,MHESKETH,21/12/2023,2023,9,BMCDONOUGH,21/12/2023 12:27,N,N
************8571,46,Emma Lyons,U,Emma Lyons,14777,B,14777,02/12/2023,0,,01/01/1900,0,,0,,105.29,,,,,0,,,,MAILCHIMP,,,,,,,,,Y,02/01/2024 12:59,JCARTRIDGE,7433,289,N,,,,Y,03/01/2024 10:43,MHESKETH,01/01/1900,0,,MBLACK,02/01/2024 12:57,,
************8571,46,Emma Lyons,U,Emma Lyons,10636,C,10636,26/11/2023,2023,8,21/12/2023,2023,9,2023,9,1.95,0.00,1.95,R,0%,2023,9,,,Facebook,Facebook,Other,3040,46100,,,People and Places,People and Places,Y,21/12/2023 12:12,BMCDONOUGH,7415,8182,N,,,,Y,21/12/2023 12:51,MHESKETH,21/12/2023,2023,9,BMCDONOUGH,21/12/2023 12:12,N,N
************8571,46,Emma Lyons,U,Emma Lyons,14738,B,14738,26/11/2023,0,,01/01/1900,0,,0,,1.95,,,,,0,,,,FACEBK R48J7WBKM2,,,,,,,,,Y,21/12/2023 12:12,BMCDONOUGH,7415,288,N,,,,Y,21/12/2023 12:51,MHESKETH,01/01/1900,0,,CCROOK,29/11/2023 12:33,,
************8571,46,Emma Lyons,U,Emma Lyons,10635,C,10635,24/11/2023,2023,8,21/12/2023,2023,9,2023,9,40.00,0.00,40.00,R,0%,2023,9,,,Facebook,Paid social,Other,3720,46104,,,People and Places,People and Places,Y,21/12/2023 12:12,BMCDONOUGH,7416,8181,N,,,,Y,21/12/2023 12:51,MHESKETH,21/12/2023,2023,9,BMCDONOUGH,21/12/2023 12:11,N,N
************8571,46,Emma Lyons,U,Emma Lyons,14737,B,14737,24/11/2023,0,,01/01/1900,0,,0,,40.00,,,,,0,,,,FACEBK G3FMQWPKM2,,,,,,,,,Y,21/12/2023 12:12,BMCDONOUGH,7416,288,N,,,,Y,21/12/2023 12:51,MHESKETH,01/01/1900,0,,CCROOK,29/11/2023 12:33,,
************8571,46,Emma Lyons,U,Emma Lyons,10598,C,10598,19/11/2023,2023,8,07/12/2023,2023,9,2023,9,97.45,0.00,97.45,C,0%,2023,9,,,Freepik,Annual subscription,Other,6501,45300,,,People and Places,People and Places,Y,07/12/2023 10:59,ELYONS,7405,8158,N,,,,Y,07/12/2023 11:07,MHESKETH,07/12/2023,2023,9,ELYONS,07/12/2023 09:52,N,N
************8571,46,Emma Lyons,U,Emma Lyons,14713,B,14713,19/11/2023,0,,01/01/1900,0,,0,,97.45,,,,,0,,,,FC FREEPIK PREMIUM YE,,,,,,,,,Y,07/12/2023 10:59,ELYONS,7405,288,N,,,,Y,07/12/2023 11:07,MHESKETH,01/01/1900,0,,CCROOK,29/11/2023 12:33,,
************8571,46,Emma Lyons,U,Emma Lyons,10634,C,10634,12/11/2023,2023,8,21/12/2023,2023,9,2023,9,2.00,0.00,2.00,R,0%,2023,9,,,Facebook,Paid social,Other,3040,46100,,,People and Places,People and Places,Y,21/12/2023 12:13,BMCDONOUGH,7417,8180,N,,,,Y,21/12/2023 12:51,MHESKETH,21/12/2023,2023,9,BMCDONOUGH,21/12/2023 12:10,N,N
************8571,46,Emma Lyons,U,Emma Lyons,14698,B,14698,12/11/2023,0,,01/01/1900,0,,0,,2.00,,,,,0,,,,FACEBK AVTUTWBDS2,,,,,,,,,Y,21/12/2023 12:13,BMCDONOUGH,7417,288,N,,,,Y,21/12/2023 12:51,MHESKETH,01/01/1900,0,,CCROOK,29/11/2023 12:33,,
************8571,46,Emma Lyons,U,Emma Lyons,10601,C,10601,09/11/2023,2023,8,07/12/2023,2023,9,2023,9,-36.00,0.00,-36.00,C,0%,2023,9,,,Trainline,Refund,Other,6501,33000,,,People and Places,People and Places,Y,07/12/2023 10:59,ELYONS,7405,8158,N,,,,Y,07/12/2023 11:07,MHESKETH,07/12/2023,2023,9,ELYONS,07/12/2023 10:55,N,N
************8571,46,Emma Lyons,U,Emma Lyons,14693,B,14693,09/11/2023,0,,01/01/1900,0,,0,,-36.00,,,,,0,,,,TRAINLINE,,,,,,,,,Y,07/12/2023 10:59,ELYONS,7405,288,N,,,,Y,07/12/2023 11:07,MHESKETH,01/01/1900,0,,CCROOK,29/11/2023 12:33,,
************8571,46,Emma Lyons,U,Emma Lyons,10603,C,10603,09/11/2023,2023,8,07/12/2023,2023,9,2023,9,-30.35,0.00,-30.35,C,0%,2023,9,,,Trainline,Refund,Other,6501,33000,,,People and Places,People and Places,Y,19/12/2023 10:13,CCROOK,7408,8159,N,,,,Y,19/12/2023 10:19,MHESKETH,07/12/2023,2023,9,ELYONS,07/12/2023 11:03,N,N
************8571,46,Emma Lyons,U,Emma Lyons,14694,B,14694,09/11/2023,0,,01/01/1900,0,,0,,-30.35,,,,,0,,,,TRAINLINE,,,,,,,,,Y,19/12/2023 10:13,CCROOK,7408,288,N,,,,Y,19/12/2023 10:19,MHESKETH,01/01/1900,0,,CCROOK,29/11/2023 12:33,,
************8571,46,Emma Lyons,U,Emma Lyons,10599,C,10599,07/11/2023,2023,8,07/12/2023,2023,9,2023,9,90.00,15.00,75.00,B,20%,2023,9,,,LG Comms,Online ticket for LG comms academy,Other,6501,17012,,,People and Places,People and Places,Y,07/12/2023 10:59,ELYONS,7405,8158,N,,,,Y,07/12/2023 11:07,MHESKETH,07/12/2023,2023,9,ELYONS,07/12/2023 10:18,N,N
************8571,46,Emma Lyons,U,Emma Lyons,14763,B,14763,07/11/2023,0,,01/01/1900,0,,0,,90.00,,,,,0,,,,PAYPAL LGCOMMS2018,,,,,,,,,Y,07/12/2023 10:59,ELYONS,7405,288,N,,,,Y,07/12/2023 11:07,MHESKETH,01/01/1900,0,,CCROOK,29/11/2023 12:33,,
************8571,46,Emma Lyons,U,Emma Lyons,10632,C,10632,02/11/2023,2023,8,21/12/2023,2023,9,2023,9,95.57,0.00,95.57,R,0%,2023,9,,,Mailchimp,Mailchimp monthly fees,Other,6501,,,,People and Places,People and Places,Y,21/12/2023 12:12,BMCDONOUGH,7414,8177,N,,,,Y,21/12/2023 12:51,MHESKETH,21/12/2023,2023,9,BMCDONOUGH,21/12/2023 12:02,N,N
************8571,46,Emma Lyons,U,Emma Lyons,14757,B,14757,02/11/2023,0,,01/01/1900,0,,0,,95.57,,,,,0,,,,MAILCHIMP,,,,,,,,,Y,21/12/2023 12:12,BMCDONOUGH,7414,288,N,,,,Y,21/12/2023 12:51,MHESKETH,01/01/1900,0,,CCROOK,29/11/2023 12:33,,
************8571,46,Emma Lyons,U,Emma Lyons,10600,C,10600,30/10/2023,2023,7,07/12/2023,2023,9,2023,9,80.13,0.00,80.13,C,0%,2023,9,,,Trainline,Train tickets to Sheffield,Other,6501,33000,,,People and Places,People and Places,Y,07/12/2023 10:59,ELYONS,7405,8158,N,,,,Y,07/12/2023 11:07,MHESKETH,07/12/2023,2023,9,ELYONS,07/12/2023 10:24,N,N
************8571,46,Emma Lyons,U,Emma Lyons,14691,B,14691,30/10/2023,0,,01/01/1900,0,,0,,80.13,,,,,0,,,,TRAINLINE,,,,,,,,,Y,07/12/2023 10:59,ELYONS,7405,288,N,,,,Y,07/12/2023 11:07,MHESKETH,01/01/1900,0,,CCROOK,29/11/2023 12:33,,
************8571,46,Emma Lyons,U,Emma Lyons,10577,C,10577,26/10/2023,2023,7,29/11/2023,2023,8,2023,8,20.00,0.00,20.00,C,0%,2023,8,,,facebook,paid social MH,Other,3040,46100,,,People and Places,People and Places,Y,29/11/2023 10:50,CPARRY,7381,8146,N,,,,Y,29/11/2023 12:59,MHESKETH,29/11/2023,2023,8,CPARRY,29/11/2023 10:50,N,N
************8571,46,Emma Lyons,U,Emma Lyons,14649,B,14649,26/10/2023,0,,01/01/1900,0,,0,,20.00,,,,,0,,,,FACEBK N2XNXV3LM2,,,,,,,,,Y,29/11/2023 10:50,CPARRY,7381,287,N,,,,Y,29/11/2023 12:59,MHESKETH,01/01/1900,0,,CCROOK,31/10/2023 10:29,,
************8571,46,Emma Lyons,U,Emma Lyons,10633,C,10633,18/10/2023,2023,7,21/12/2023,2023,9,2023,9,18.00,0.00,18.00,R,0%,2023,9,,,Facebook,Paid social,Other,3040,46100,,,People and Places,People and Places,Y,21/12/2023 12:13,BMCDONOUGH,7418,8178,N,,,,Y,21/12/2023 12:51,MHESKETH,21/12/2023,2023,9,BMCDONOUGH,21/12/2023 12:08,N,N
************8571,46,Emma Lyons,U,Emma Lyons,14631,B,14631,18/10/2023,0,,01/01/1900,0,,0,,18.00,,,,,0,,,,FACEBK YTUH2VFDS2,,,,,,,,,Y,21/12/2023 12:13,BMCDONOUGH,7418,287,N,,,,Y,21/12/2023 12:51,MHESKETH,01/01/1900,0,,CCROOK,31/10/2023 10:29,,
************8571,46,Emma Lyons,U,Emma Lyons,10575,C,10575,11/10/2023,2023,7,27/11/2023,2023,8,2023,8,35.21,0.00,35.21,C,0%,2023,8,,,Meta,Paid social,Other,6501,46107,,,People and Places,People and Places,Y,27/11/2023 17:29,BMCDONOUGH,7379,8144,N,,,,Y,28/11/2023 10:51,MHESKETH,27/11/2023,2023,8,BMCDONOUGH,27/11/2023 17:21,N,N
************8571,46,Emma Lyons,U,Emma Lyons,14681,B,14681,11/10/2023,0,,01/01/1900,0,,0,,35.21,,,,,0,,,,FACEBK EH9AJU3HX2,,,,,,,,,Y,27/11/2023 17:29,BMCDONOUGH,7379,287,N,,,,Y,28/11/2023 10:51,MHESKETH,01/01/1900,0,,CCROOK,31/10/2023 10:29,,
************8571,46,Emma Lyons,U,Emma Lyons,10576,C,10576,11/10/2023,2023,7,27/11/2023,2023,8,2023,8,83.14,0.00,83.14,C,0%,2023,8,,,Mailchimp,e-news subscription fees,Other,6501,,,,People and Places,People and Places,Y,27/11/2023 17:30,BMCDONOUGH,7380,8145,N,,,,Y,28/11/2023 10:51,MHESKETH,27/11/2023,2023,8,BMCDONOUGH,27/11/2023 17:26,N,N
************8571,46,Emma Lyons,U,Emma Lyons,14682,B,14682,11/10/2023,0,,01/01/1900,0,,0,,83.14,,,,,0,,,,MAILCHIMP,,,,,,,,,Y,27/11/2023 17:30,BMCDONOUGH,7380,287,N,,,,Y,28/11/2023 10:51,MHESKETH,01/01/1900,0,,CCROOK,31/10/2023 10:29,,
************1295,47,C Postle,U,Catherine Postle,10619,C,10619,13/12/2023,2023,9,18/12/2023,2023,9,2023,9,9.70,0.00,9.70,C,0%,2023,9,,,Aldi Stores,2 x Family Circle biscuits 2 x Cherry Bakewell 1 x Brioche Swirl 1 x Mini Muffins,Other,6503,46842,,,Resources,Resources,Y,02/01/2024 12:59,JCARTRIDGE,7438,8172,N,,,,Y,03/01/2024 10:39,MHESKETH,18/12/2023,2023,9,JCARTRIDGE,18/12/2023 16:38,N,N
************1295,47,C Postle,U,Catherine Postle,14794,B,14794,13/12/2023,0,,01/01/1900,0,,0,,9.70,,,,,0,,,,ALDI 104 773,,,,,,,,,Y,02/01/2024 12:59,JCARTRIDGE,7438,289,N,,,,Y,03/01/2024 10:39,MHESKETH,01/01/1900,0,,MBLACK,02/01/2024 12:57,,
************1295,47,C Postle,U,Catherine Postle,10581,C,10581,30/11/2023,2023,8,04/12/2023,2023,9,2023,9,20.50,0.00,20.50,D,0%,2023,9,,,Morrisons,4 x celebrations 2 x mince pie,Other,6503,46842,,,Resources,Resources,Y,02/01/2024 12:59,JCARTRIDGE,7434,8147,N,,,,Y,03/01/2024 10:39,MHESKETH,04/12/2023,2023,9,JCARTRIDGE,04/12/2023 10:20,N,N
************1295,47,C Postle,U,Catherine Postle,14773,B,14773,30/11/2023,0,,01/01/1900,0,,0,,20.50,,,,,0,,,,WM MORRISONS STORE,,,,,,,,,Y,02/01/2024 12:59,JCARTRIDGE,7434,289,N,,,,Y,03/01/2024 10:39,MHESKETH,01/01/1900,0,,MBLACK,02/01/2024 12:57,,
************1295,47,C Postle,U,Catherine Postle,10649,C,10649,30/11/2023,2023,8,02/01/2024,2023,10,2023,10,21.00,0.00,21.00,D,0%,2023,10,,,Morrisons,5 x boxes of Cadburys Roses,Other,6503,46842,,,Resources,Resources,Y,02/01/2024 15:16,JCARTRIDGE,7441,8193,N,,,,Y,03/01/2024 10:39,MHESKETH,02/01/2024,2023,10,JCARTRIDGE,02/01/2024 15:15,N,N
************1295,47,C Postle,U,Catherine Postle,14774,B,14774,30/11/2023,0,,01/01/1900,0,,0,,21.00,,,,,0,,,,WM MORRISONS STORE,,,,,,,,,Y,02/01/2024 15:16,JCARTRIDGE,7441,289,N,,,,Y,03/01/2024 10:39,MHESKETH,01/01/1900,0,,MBLACK,02/01/2024 12:57,,
************1295,47,C Postle,U,Catherine Postle,10578,C,10578,30/11/2023,2023,8,04/12/2023,2023,9,2023,9,24.00,0.00,24.00,D,0%,2023,9,,,Morrisons,6 x Cadbury Roses,Other,6503,46842,,,Resources,Resources,Y,02/01/2024 12:59,JCARTRIDGE,7435,8147,N,,,,Y,03/01/2024 10:39,MHESKETH,04/12/2023,2023,9,JCARTRIDGE,04/12/2023 10:16,N,N
************1295,47,C Postle,U,Catherine Postle,10579,C,10579,30/11/2023,2023,8,04/12/2023,2023,9,2023,9,24.00,0.00,24.00,D,0%,2023,9,,,Morrisons,2 x Cadbury Heroes 4 x Celebrations,Other,6503,46842,,,Resources,Resources,Y,02/01/2024 12:59,JCARTRIDGE,7436,8147,N,,,,Y,03/01/2024 10:39,MHESKETH,04/12/2023,2023,9,JCARTRIDGE,04/12/2023 10:17,N,N
************1295,47,C Postle,U,Catherine Postle,10580,C,10580,30/11/2023,2023,8,04/12/2023,2023,9,2023,9,24.00,0.00,24.00,D,0%,2023,9,,,Morrisons,6 x Quality Street,Other,6503,46842,,,Resources,Resources,Y,02/01/2024 12:59,JCARTRIDGE,7437,8147,N,,,,Y,03/01/2024 10:39,MHESKETH,04/12/2023,2023,9,JCARTRIDGE,04/12/2023 10:19,N,N
************1295,47,C Postle,U,Catherine Postle,14767,B,14767,30/11/2023,0,,01/01/1900,0,,0,,24.00,,,,,0,,,,WM MORRISONS STORE,,,,,,,,,Y,02/01/2024 12:59,JCARTRIDGE,7435,289,N,,,,Y,03/01/2024 10:39,MHESKETH,01/01/1900,0,,MBLACK,02/01/2024 12:57,,
************1295,47,C Postle,U,Catherine Postle,14768,B,14768,30/11/2023,0,,01/01/1900,0,,0,,24.00,,,,,0,,,,WM MORRISONS STORE,,,,,,,,,Y,02/01/2024 12:59,JCARTRIDGE,7436,289,N,,,,Y,03/01/2024 10:39,MHESKETH,01/01/1900,0,,MBLACK,02/01/2024 12:57,,
************1295,47,C Postle,U,Catherine Postle,14769,B,14769,30/11/2023,0,,01/01/1900,0,,0,,24.00,,,,,0,,,,WM MORRISONS STORE,,,,,,,,,Y,02/01/2024 12:59,JCARTRIDGE,7437,289,N,,,,Y,03/01/2024 10:39,MHESKETH,01/01/1900,0,,MBLACK,02/01/2024 12:57,,
************1295,47,C Postle,U,Catherine Postle,10574,C,10574,27/11/2023,2023,8,27/11/2023,2023,8,2023,8,72.75,0.00,72.75,D,0%,2023,8,,,morrisons,"Mince Pies, Napkins, Coffee for CEO",Other,6503,46842,,,Resources,Resources,Y,29/11/2023 12:34,JCARTRIDGE,7391,8143,N,,,,Y,04/12/2023 13:01,MHESKETH,27/11/2023,2023,8,JCARTRIDGE,27/11/2023 16:33,N,N
************1295,47,C Postle,U,Catherine Postle,14742,B,14742,27/11/2023,0,,01/01/1900,0,,0,,72.75,,,,,0,,,,WM MORRISONS STORE,,,,,,,,,Y,29/11/2023 12:34,JCARTRIDGE,7391,288,N,,,,Y,04/12/2023 13:01,MHESKETH,01/01/1900,0,,CCROOK,29/11/2023 12:33,,
************4321,48,Roger Brocklebank,S,Tracey Waistle,14792,B,14792,12/12/2023,0,,01/01/1900,0,,0,,-37.99,,,,,0,,,,AUSTENGROUP,,,,,,,,,N,,,0,289,N,,,,N,,,01/01/1900,0,,MBLACK,02/01/2024 12:57,,
************4321,48,Roger Brocklebank,S,Tracey Waistle,10637,C,10637,12/12/2023,2023,9,21/12/2023,2023,9,2023,9,11.95,1.99,9.96,B,20%,2023,9,Y,GB659880474,Greggs,Lunch Visit to Yorkshire to see Demonstration of equipment,Other,6953,46808,,,People and Places,People and Places,N,,,0,8179,N,,,,N,,,,0,0,TWAISTLE,21/12/2023 12:16,N,N
************4321,48,Roger Brocklebank,S,Tracey Waistle,14786,B,14786,08/12/2023,0,,01/01/1900,0,,0,,117.95,,,,,0,,,,AUSTENGROUP,,,,,,,,,N,,,0,289,N,,,,N,,,01/01/1900,0,,MBLACK,02/01/2024 12:57,,
************4321,48,Roger Brocklebank,S,Tracey Waistle,10631,C,10631,28/11/2023,2023,8,19/12/2023,2023,9,2023,9,165.00,27.50,137.50,B,20%,2023,9,Y,733097336,The Plant Place,3 x christmas trees for Wyres Cemeteries,Other,6953,,,,People and Places,People and Places,A,02/01/2024 12:59,JCARTRIDGE,7439,8176,N,,,,P,,KWINSTANLEY,,0,0,CCLOHERTYJONES,19/12/2023 17:04,N,N
************4321,48,Roger Brocklebank,S,Tracey Waistle,14766,B,14766,28/11/2023,0,,01/01/1900,0,,0,,165.00,,,,,0,,,,THE PLANT PLACE,,,,,,,,,A,02/01/2024 12:59,JCARTRIDGE,7439,289,N,,,,P,,KWINSTANLEY,01/01/1900,0,,MBLACK,02/01/2024 12:57,,
************4321,48,Roger Brocklebank,S,Tracey Waistle,10642,C,10642,21/11/2023,2023,8,21/12/2023,2023,9,2023,9,110.50,18.42,92.08,B,20%,2023,9,Y,GB384477945,SP SPRINGGARDEN&HOME,Bird table Order no: #4022,Other,6953,42002,,,People and Places,People and Places,Y,21/12/2023 12:51,TWAISTLE,7422,8187,N,,,,P,21/12/2023 12:52,KWINSTANLEY,,0,0,TWAISTLE,21/12/2023 12:46,N,N
************4321,48,Roger Brocklebank,S,Tracey Waistle,14724,B,14724,21/11/2023,0,,01/01/1900,0,,0,,110.50,,,,,0,,,,SP SPRINGGARDEN&HOME,,,,,,,,,Y,21/12/2023 12:51,TWAISTLE,7422,288,N,,,,P,21/12/2023 12:52,KWINSTANLEY,01/01/1900,0,,CCROOK,29/11/2023 12:33,,
************4321,48,Roger Brocklebank,S,Tracey Waistle,10639,C,10639,10/11/2023,2023,8,21/12/2023,2023,9,2023,9,17.95,2.99,14.96,B,20%,2023,9,Y,GB100556712,L&S Engineers,Knob Invoice no: IN2212979,Other,3420,46849,,,People and Places,People and Places,Y,21/12/2023 12:50,TWAISTLE,7420,8184,N,,,,P,21/12/2023 12:51,KWINSTANLEY,,0,0,TWAISTLE,21/12/2023 12:26,N,N
************4321,48,Roger Brocklebank,S,Tracey Waistle,14699,B,14699,10/11/2023,0,,01/01/1900,0,,0,,17.95,,,,,0,,,,WWW.LSENGINEERS.CO.UK,,,,,,,,,Y,21/12/2023 12:50,TWAISTLE,7420,288,N,,,,P,21/12/2023 12:51,KWINSTANLEY,01/01/1900,0,,CCROOK,29/11/2023 12:33,,
************4321,48,Roger Brocklebank,S,Tracey Waistle,10641,C,10641,10/11/2023,2023,8,21/12/2023,2023,9,2023,9,219.99,36.67,183.32,B,20%,2023,9,Y,GB288931993,Shedstore,Metal Shed Invoice no: SHS3000330496,Other,6953,40100,,,People and Places,People and Places,Y,21/12/2023 12:51,TWAISTLE,7421,8186,N,,,,P,21/12/2023 12:51,KWINSTANLEY,,0,0,TWAISTLE,21/12/2023 12:35,N,N
************4321,48,Roger Brocklebank,S,Tracey Waistle,14700,B,14700,10/11/2023,0,,01/01/1900,0,,0,,219.99,,,,,0,,,,WWW.SHEDSTORE.CO.UK,,,,,,,,,Y,21/12/2023 12:51,TWAISTLE,7421,288,N,,,,P,21/12/2023 12:51,KWINSTANLEY,01/01/1900,0,,CCROOK,29/11/2023 12:33,,
************4321,48,Roger Brocklebank,S,Tracey Waistle,10638,C,10638,02/11/2023,2023,8,21/12/2023,2023,9,2023,9,17.95,0.00,17.95,C,0%,2023,9,,,The NEC,The NEC - Birmingham Saltex Carparking receipt,Other,6953,33000,,,People and Places,People and Places,Y,21/12/2023 12:50,TWAISTLE,7419,8183,N,,,,P,21/12/2023 12:50,KWINSTANLEY,,0,0,TWAISTLE,21/12/2023 12:22,N,N
************4321,48,Roger Brocklebank,S,Tracey Waistle,14760,B,14760,02/11/2023,0,,01/01/1900,0,,0,,17.95,,,,,0,,,,THE NEC,,,,,,,,,Y,21/12/2023 12:50,TWAISTLE,7419,288,N,,,,P,21/12/2023 12:50,KWINSTANLEY,01/01/1900,0,,CCROOK,29/11/2023 12:33,,
************4321,48,Roger Brocklebank,S,Tracey Waistle,10528,C,10528,27/10/2023,2023,7,27/10/2023,2023,7,2023,7,84.99,14.16,70.83,B,20%,2023,7,,,Fishing Tackle Direct UK,Waders Receipt Order no: 59325,Other,6953,41600,,,People and Places,People and Places,A,29/11/2023 12:34,JCARTRIDGE,7392,8101,N,,,,P,,KWINSTANLEY,,0,0,TWAISTLE,27/10/2023 15:01,N,N
************4321,48,Roger Brocklebank,S,Tracey Waistle,14747,B,14747,27/10/2023,0,,01/01/1900,0,,0,,84.99,,,,,0,,,,FISHING TACKLE DIRECT,,,,,,,,,A,29/11/2023 12:34,JCARTRIDGE,7392,288,N,,,,P,,KWINSTANLEY,01/01/1900,0,,CCROOK,29/11/2023 12:33,,
************4321,48,Roger Brocklebank,S,Tracey Waistle,10527,C,10527,19/10/2023,2023,7,27/10/2023,2023,7,2023,7,24.60,0.00,24.60,C,0%,2023,7,,,Plant World Seeds,"Seeds Event at the Mount, Fleetwood Order no: 6046596502",Other,3115,40100,,,People and Places,People and Places,A,31/10/2023 10:31,CCROOK,7359,8100,N,,,,P,,KWINSTANLEY,,0,0,TWAISTLE,27/10/2023 14:54,N,N
************4321,48,Roger Brocklebank,S,Tracey Waistle,14636,B,14636,19/10/2023,0,,01/01/1900,0,,0,,24.60,,,,,0,,,,PLANT WORLD SEEDS,,,,,,,,,A,31/10/2023 10:31,CCROOK,7359,287,N,,,,P,,KWINSTANLEY,01/01/1900,0,,CCROOK,31/10/2023 10:29,,
************4321,48,Roger Brocklebank,S,Tracey Waistle,10523,C,10523,17/10/2023,2023,7,24/10/2023,2023,7,2023,7,40.55,6.76,33.79,B,20%,2023,7,Y,232555575,screwfix,"marker pens, paintbrushes and toolbox -",Other,6953,42002,,,People and Places,People and Places,A,31/10/2023 10:31,CCROOK,7358,8096,N,,,,P,,KWINSTANLEY,,0,0,CCLOHERTYJONES,24/10/2023 17:19,N,N
************4321,48,Roger Brocklebank,S,Tracey Waistle,14629,B,14629,17/10/2023,0,,01/01/1900,0,,0,,40.55,,,,,0,,,,WWW.SCREWFIX.COM,,,,,,,,,A,31/10/2023 10:31,CCROOK,7358,287,N,,,,P,,KWINSTANLEY,01/01/1900,0,,CCROOK,31/10/2023 10:29,,
************4321,48,Roger Brocklebank,S,Tracey Waistle,10644,C,10644,12/10/2023,2023,7,21/12/2023,2023,9,2023,9,11.95,1.99,9.96,B,20%,2023,9,Y,GB659880474,Greggs,Lunch visit to Yorkshire to see demonstration of equipment Receipt,Other,6953,46808,,,People and Places,People and Places,Y,21/12/2023 13:59,TWAISTLE,7424,8189,N,,,,P,21/12/2023 13:59,KWINSTANLEY,,0,0,TWAISTLE,21/12/2023 13:58,N,N
************4321,48,Roger Brocklebank,S,Tracey Waistle,14684,B,14684,12/10/2023,0,,01/01/1900,0,,0,,11.95,,,,,0,,,,GREGGS PLC,,,,,,,,,Y,21/12/2023 12:52,TWAISTLE,7423,287,N,,,,P,21/12/2023 13:59,KWINSTANLEY,01/01/1900,0,,CCROOK,31/10/2023 10:29,,
************7717,49,Mrs Tracy J Waistle,U,Tracey Waistle,14813,B,14813,21/12/2023,0,,01/01/1900,0,,0,,66.67,,,,,0,,,,ASDA STOES LTD 5759,,,,,,,,,N,,,0,289,N,,,,N,,,01/01/1900,0,,MBLACK,02/01/2024 12:57,,
************7717,49,Mrs Tracy J Waistle,U,Tracey Waistle,14791,B,14791,12/12/2023,0,,01/01/1900,0,,0,,10.00,,,,,0,,,,TSO SHOP ID-7572918,,,,,,,,,N,,,0,289,N,,,,N,,,01/01/1900,0,,MBLACK,02/01/2024 12:57,,
************7717,49,Mrs Tracy J Waistle,U,Tracey Waistle,14784,B,14784,07/12/2023,0,,01/01/1900,0,,0,,34.99,,,,,0,,,,SP BLACK HAMMER UK,,,,,,,,,N,,,0,289,N,,,,N,,,01/01/1900,0,,MBLACK,02/01/2024 12:57,,
************7717,49,Mrs Tracy J Waistle,U,Tracey Waistle,14783,B,14783,07/12/2023,0,,01/01/1900,0,,0,,36.48,,,,,0,,,,SP WIDE SHOES WEBSIT,,,,,,,,,N,,,0,289,N,,,,N,,,01/01/1900,0,,MBLACK,02/01/2024 12:57,,
************7717,49,Mrs Tracy J Waistle,U,Tracey Waistle,10647,C,10647,30/11/2023,2023,8,02/01/2024,2023,10,2023,10,418.67,69.78,348.89,B,20%,2023,10,Y,GB827639788,The Defib Pad,1 x battery for Defib,Other,3260,42002,,,People and Places,People and Places,Y,02/01/2024 15:31,JCARTRIDGE,7444,8191,N,,,,Y,02/01/2024 15:40,GSCOTT,02/01/2024,2023,10,CCLOHERTYJONES,02/01/2024 14:41,N,N
************7717,49,Mrs Tracy J Waistle,U,Tracey Waistle,14772,B,14772,30/11/2023,0,,01/01/1900,0,,0,,418.67,,,,,0,,,,DEFIB PAD,,,,,,,,,Y,02/01/2024 15:31,JCARTRIDGE,7444,289,N,,,,Y,02/01/2024 15:40,GSCOTT,01/01/1900,0,,MBLACK,02/01/2024 12:57,,
************7717,49,Mrs Tracy J Waistle,U,Tracey Waistle,10604,C,10604,22/11/2023,2023,8,07/12/2023,2023,9,2023,9,130.60,21.78,108.82,B,20%,2023,9,Y,GB159139151,David Austin Roses,Roses for Poulton Cemetery Invoice no: MOSI2651823,Other,3222,28003,,,People and Places,People and Places,Y,19/12/2023 16:34,JCARTRIDGE,7410,8160,N,,,,Y,02/01/2024 15:40,GSCOTT,07/12/2023,2023,9,TWAISTLE,07/12/2023 14:29,N,N
************7717,49,Mrs Tracy J Waistle,U,Tracey Waistle,14727,B,14727,22/11/2023,0,,01/01/1900,0,,0,,130.60,,,,,0,,,,SP DAVID AUSTIN RO,,,,,,,,,Y,19/12/2023 16:34,JCARTRIDGE,7410,288,N,,,,Y,02/01/2024 15:40,GSCOTT,01/01/1900,0,,CCROOK,29/11/2023 12:33,,
************7717,49,Mrs Tracy J Waistle,U,Tracey Waistle,10563,C,10563,10/11/2023,2023,8,16/11/2023,2023,8,2023,8,34.99,0.00,34.99,C,0%,2023,8,,,Black Hammer,Safety Boots Invoice no: #1020004750BH,Other,6953,41600,,,People and Places,People and Places,Y,29/11/2023 12:34,JCARTRIDGE,7393,8134,N,,,,Y,04/12/2023 10:43,GSCOTT,16/11/2023,2023,8,TWAISTLE,16/11/2023 13:23,N,N
************7717,49,Mrs Tracy J Waistle,U,Tracey Waistle,14696,B,14696,10/11/2023,0,,01/01/1900,0,,0,,34.99,,,,,0,,,,SP BLACK HAMMER UK,,,,,,,,,Y,29/11/2023 12:34,JCARTRIDGE,7393,288,N,,,,Y,04/12/2023 10:43,GSCOTT,01/01/1900,0,,CCROOK,29/11/2023 12:33,,
************7717,49,Mrs Tracy J Waistle,U,Tracey Waistle,10606,C,10606,07/11/2023,2023,8,07/12/2023,2023,9,2023,9,41.27,6.88,34.39,B,20%,2023,9,Y,GB188433433,Lawson HIS Ltd,Trousers Order no: #100319995,Other,3420,41600,,,People and Places,People and Places,Y,19/12/2023 16:34,JCARTRIDGE,7410,8162,N,,,,Y,02/01/2024 15:40,GSCOTT,07/12/2023,2023,9,TWAISTLE,07/12/2023 14:47,N,N
************7717,49,Mrs Tracy J Waistle,U,Tracey Waistle,14697,B,14697,07/11/2023,0,,01/01/1900,0,,0,,41.27,,,,,0,,,,LAWSON H I S LTD,,,,,,,,,Y,19/12/2023 16:34,JCARTRIDGE,7410,288,N,,,,Y,02/01/2024 15:40,GSCOTT,01/01/1900,0,,CCROOK,29/11/2023 12:33,,
************7717,49,Mrs Tracy J Waistle,U,Tracey Waistle,10605,C,10605,07/11/2023,2023,8,07/12/2023,2023,9,2023,9,133.99,22.33,111.66,B,20%,2023,9,Y,GB251947783,Crewsafe Marine Ltd,Buoyancy aid Food Safety Invoice no: 53436,Other,3272,40100,,,People and Places,People and Places,Y,19/12/2023 16:34,JCARTRIDGE,7410,8161,N,,,,Y,02/01/2024 15:40,GSCOTT,07/12/2023,2023,9,TWAISTLE,07/12/2023 14:33,N,N
************7717,49,Mrs Tracy J Waistle,U,Tracey Waistle,14762,B,14762,07/11/2023,0,,01/01/1900,0,,0,,133.99,,,,,0,,,,CREWSAFE MARINE LTD,,,,,,,,,Y,19/12/2023 16:34,JCARTRIDGE,7410,288,N,,,,Y,02/01/2024 15:40,GSCOTT,01/01/1900,0,,CCROOK,29/11/2023 12:33,,
************7717,49,Mrs Tracy J Waistle,U,Tracey Waistle,10556,C,10556,03/11/2023,2023,8,09/11/2023,2023,8,2023,8,231.60,38.60,193.00,B,20%,2023,8,Y,201923349,Northern Polytunnels,polythene repair tape,Other,6953,42002,,,People and Places,People and Places,Y,04/12/2023 10:09,JCARTRIDGE,7399,8126,N,,,,Y,04/12/2023 10:43,GSCOTT,09/11/2023,2023,8,CCLOHERTYJONES,09/11/2023 17:35,N,N
************7717,49,Mrs Tracy J Waistle,U,Tracey Waistle,10555,C,10555,01/11/2023,2023,8,09/11/2023,2023,8,2023,8,41.34,6.89,34.45,B,20%,2023,8,Y,232555575,screwfix,Builders Repair Street,Other,6902,42002,,,People and Places,People and Places,Y,29/11/2023 12:34,JCARTRIDGE,7395,8125,N,,,,Y,04/12/2023 10:43,GSCOTT,09/11/2023,2023,8,CCLOHERTYJONES,09/11/2023 17:32,N,N
************7717,49,Mrs Tracy J Waistle,U,Tracey Waistle,14753,B,14753,01/11/2023,0,,01/01/1900,0,,0,,41.34,,,,,0,,,,WWW.SCREWFIX.COM,,,,,,,,,Y,29/11/2023 12:34,JCARTRIDGE,7395,288,N,,,,Y,04/12/2023 10:43,GSCOTT,01/01/1900,0,,CCROOK,29/11/2023 12:33,,
************7717,49,Mrs Tracy J Waistle,U,Tracey Waistle,14754,B,14754,01/11/2023,0,,01/01/1900,0,,0,,231.60,,,,,0,,,,NORTHERNPOLYTUNNEL,,,,,,,,,Y,04/12/2023 10:09,JCARTRIDGE,7399,288,N,,,,Y,04/12/2023 10:43,GSCOTT,01/01/1900,0,,CCROOK,29/11/2023 12:33,,
************7717,49,Mrs Tracy J Waistle,U,Tracey Waistle,10564,C,10564,31/10/2023,2023,7,16/11/2023,2023,8,2023,8,13.34,2.22,11.12,B,20%,2023,8,Y,597849161,dpd,Postage Service of equipment Invoice no: TX-7822233,Other,6953,42002,,,People and Places,People and Places,Y,29/11/2023 12:34,JCARTRIDGE,7394,8135,N,,,,Y,04/12/2023 10:43,GSCOTT,16/11/2023,2023,8,TWAISTLE,16/11/2023 13:26,N,N
************7717,49,Mrs Tracy J Waistle,U,Tracey Waistle,14692,B,14692,31/10/2023,0,,01/01/1900,0,,0,,13.34,,,,,0,,,,DPD WL,,,,,,,,,Y,29/11/2023 12:34,JCARTRIDGE,7394,288,N,,,,Y,04/12/2023 10:43,GSCOTT,01/01/1900,0,,CCROOK,29/11/2023 12:33,,
